Department family,Entity,Date,Expense Type,Expense area,Supplier,Transaction number,AP Amount (�)
Department of Health,NHS Sheffield CCG,28/02/2019,C&M-PMS Contract Value,PRC DELEGATED CO-COMMISSIONING,ABBEY LANE SURGERY,25926712,"23,724.96 "
Department of Health,NHS Sheffield CCG,28/02/2019,C&M-PMS Prem Notional Rent,PRC DELEGATED CO-COMMISSIONING,ABBEY LANE SURGERY,25926712,"2,122.92 "
Department of Health,NHS Sheffield CCG,28/02/2019,C&M-PMS QOF Aspiration,PRC DELEGATED CO-COMMISSIONING,ABBEY LANE SURGERY,25926712,"2,572.92 "
Department of Health,NHS Sheffield CCG,28/02/2019,Cont Care-Physical Disab (65+),CHC ADULT FULLY FUNDED,ABBEYCARE NURSING,25943733,"46,322.64 "
Department of Health,NHS Sheffield CCG,28/02/2019,C&M-PMS Contract Value,PRC DELEGATED CO-COMMISSIONING,AVENUE MEDICAL CENTRE SHEFFIELD,25926710,"54,808.81 "
Department of Health,NHS Sheffield CCG,28/02/2019,C&M-PMS DES Minor Surgery,PRC DELEGATED CO-COMMISSIONING,AVENUE MEDICAL CENTRE SHEFFIELD,25926710,"2,085.00 "
Department of Health,NHS Sheffield CCG,28/02/2019,C&M-PMS Out of Hours Opt Outs,PRC DELEGATED CO-COMMISSIONING,AVENUE MEDICAL CENTRE SHEFFIELD,25926710,3.86 
Department of Health,NHS Sheffield CCG,28/02/2019,C&M-PMS Prem Notional Rent,PRC DELEGATED CO-COMMISSIONING,AVENUE MEDICAL CENTRE SHEFFIELD,25926710,"5,546.67 "
Department of Health,NHS Sheffield CCG,28/02/2019,C&M-PMS QOF Aspiration,PRC DELEGATED CO-COMMISSIONING,AVENUE MEDICAL CENTRE SHEFFIELD,25926710,"5,705.45 "
Department of Health,NHS Sheffield CCG,28/02/2019,Hcare Srv Rec Fdtn Trust-Contract Baseline,ACUTE COMMISSIONING,BARNSLEY HOSPITAL NHS FOUNDATION TRUST,25838231,"73,344.00 "
Department of Health,NHS Sheffield CCG,28/02/2019,C&M-PMS Contract Value,PRC DELEGATED CO-COMMISSIONING,BARNSLEY ROAD SURGERY,25926714,"22,044.96 "
Department of Health,NHS Sheffield CCG,28/02/2019,C&M-PMS DES Extended Hours Access,PRC DELEGATED CO-COMMISSIONING,BARNSLEY ROAD SURGERY,25926714,"2,520.36 "
Department of Health,NHS Sheffield CCG,28/02/2019,C&M-PMS Prem Notional Rent,PRC DELEGATED CO-COMMISSIONING,BARNSLEY ROAD SURGERY,25926714,"2,652.17 "
Department of Health,NHS Sheffield CCG,28/02/2019,C&M-PMS QOF Aspiration,PRC DELEGATED CO-COMMISSIONING,BARNSLEY ROAD SURGERY,25926714,"2,364.70 "
Department of Health,NHS Sheffield CCG,28/02/2019,C&M-GMS Cost of Drugs -Prescribing,LOCAL ENHANCED SERVICES,BASLOW ROAD & SHOREHAM STREET SURGERIES,26121108,"26,036.36 "
Department of Health,NHS Sheffield CCG,28/02/2019,C&M-GMS DES Minor Surgery,PRC DELEGATED CO-COMMISSIONING,BASLOW ROAD & SHOREHAM STREET SURGERIES,26121108,"2,740.00 "
Department of Health,NHS Sheffield CCG,28/02/2019,C&M-GMS Global Sum,PRC DELEGATED CO-COMMISSIONING,BASLOW ROAD & SHOREHAM STREET SURGERIES,26121108,"96,905.83 "
Department of Health,NHS Sheffield CCG,28/02/2019,C&M-GMS MPIG Correction Factor,PRC DELEGATED CO-COMMISSIONING,BASLOW ROAD & SHOREHAM STREET SURGERIES,26121108,292.43 
Department of Health,NHS Sheffield CCG,28/02/2019,C&M-GMS Prem Notional Rent,PRC DELEGATED CO-COMMISSIONING,BASLOW ROAD & SHOREHAM STREET SURGERIES,26121108,"8,511.25 "
Department of Health,NHS Sheffield CCG,28/02/2019,C&M-GMS Prof Fees Prescribing,PRC DELEGATED CO-COMMISSIONING,BASLOW ROAD & SHOREHAM STREET SURGERIES,26121108,"5,718.06 "
Department of Health,NHS Sheffield CCG,28/02/2019,C&M-GMS QOF Aspiration,PRC DELEGATED CO-COMMISSIONING,BASLOW ROAD & SHOREHAM STREET SURGERIES,26121108,"10,715.96 "
Department of Health,NHS Sheffield CCG,28/02/2019,Cont Care-Physical Disab (65+),CHC ADULT FULLY FUNDED,BC SHEFFIELD LTD,25943770,"33,342.59 "
Department of Health,NHS Sheffield CCG,28/02/2019,C&M-PMS Contract Value,PRC DELEGATED CO-COMMISSIONING,BIRLEY HEALTH CENTRE,25926716,"63,435.34 "
Department of Health,NHS Sheffield CCG,28/02/2019,C&M-PMS DES Learn Dsblty Hlth Chk,PRC DELEGATED CO-COMMISSIONING,BIRLEY HEALTH CENTRE,25926716,"1,260.00 "
Department of Health,NHS Sheffield CCG,28/02/2019,C&M-PMS DES Minor Surgery,PRC DELEGATED CO-COMMISSIONING,BIRLEY HEALTH CENTRE,25926716,"5,625.00 "
Department of Health,NHS Sheffield CCG,28/02/2019,C&M-PMS Out of Hours Opt Outs,PRC DELEGATED CO-COMMISSIONING,BIRLEY HEALTH CENTRE,25926716,24.03 
Department of Health,NHS Sheffield CCG,28/02/2019,C&M-PMS PCO Locum Adop/Pat/Mat,PRC DELEGATED CO-COMMISSIONING,BIRLEY HEALTH CENTRE,25926716,"8,251.09 "
Department of Health,NHS Sheffield CCG,28/02/2019,C&M-PMS Prem Notional Rent,PRC DELEGATED CO-COMMISSIONING,BIRLEY HEALTH CENTRE,25926716,"7,600.58 "
Department of Health,NHS Sheffield CCG,28/02/2019,C&M-PMS Prem Water Rates,PRC DELEGATED CO-COMMISSIONING,BIRLEY HEALTH CENTRE,25926716,199.06 
Department of Health,NHS Sheffield CCG,28/02/2019,C&M-PMS QOF Aspiration,PRC DELEGATED CO-COMMISSIONING,BIRLEY HEALTH CENTRE,25926716,"7,642.20 "
Department of Health,NHS Sheffield CCG,28/02/2019,Clinical&Medical-Independent Sector,ACUTE COMMISSIONING,BMI HEALTHCARE LTD,25885885,"84,881.31 "
Department of Health,NHS Sheffield CCG,28/02/2019,C&M-GMS Cost of Drugs -Prescribing,LOCAL ENHANCED SERVICES,BROOMHILL SURGERY,26121115,"5,479.97 "
Department of Health,NHS Sheffield CCG,28/02/2019,C&M-GMS DES Minor Surgery,PRC DELEGATED CO-COMMISSIONING,BROOMHILL SURGERY,26121115,"1,020.00 "
Department of Health,NHS Sheffield CCG,28/02/2019,C&M-GMS Global Sum,PRC DELEGATED CO-COMMISSIONING,BROOMHILL SURGERY,26121115,"63,623.52 "
Department of Health,NHS Sheffield CCG,28/02/2019,C&M-GMS MPIG Correction Factor,PRC DELEGATED CO-COMMISSIONING,BROOMHILL SURGERY,26121115,502.00 
Department of Health,NHS Sheffield CCG,28/02/2019,C&M-GMS Prem Cost Rent,PRC DELEGATED CO-COMMISSIONING,BROOMHILL SURGERY,26121115,"3,380.00 "
Department of Health,NHS Sheffield CCG,28/02/2019,C&M-GMS Prem Notional Rent,PRC DELEGATED CO-COMMISSIONING,BROOMHILL SURGERY,26121115,"2,612.50 "
Department of Health,NHS Sheffield CCG,28/02/2019,C&M-GMS Prof Fees Prescribing,PRC DELEGATED CO-COMMISSIONING,BROOMHILL SURGERY,26121115,966.32 
Department of Health,NHS Sheffield CCG,28/02/2019,C&M-GMS QOF Aspiration,PRC DELEGATED CO-COMMISSIONING,BROOMHILL SURGERY,26121115,"6,274.17 "
Department of Health,NHS Sheffield CCG,28/02/2019,Hotel And Accomodation Costs,BEREAVEMENT SERVICE,BROWNE JACOBSON LLP,26145996,131.50 
Department of Health,NHS Sheffield CCG,28/02/2019,Oth Travel Costs-Car Mileage,BEREAVEMENT SERVICE,BROWNE JACOBSON LLP,26145996,130.04 
Department of Health,NHS Sheffield CCG,28/02/2019,Professional Fees,BEREAVEMENT SERVICE,BROWNE JACOBSON LLP,26145996,"37,359.30 "
Department of Health,NHS Sheffield CCG,28/02/2019,Rail Travel,BEREAVEMENT SERVICE,BROWNE JACOBSON LLP,26145996,88.65 
Department of Health,NHS Sheffield CCG,28/02/2019,C&M-GMS IT Comm Servs -GP Practices,PRIMARY CARE IT,BT GLOBAL SERVICES,26044624,"24,626.34 "
Department of Health,NHS Sheffield CCG,28/02/2019,Computer Software/License,CORPORATE COSTS & SERVICES,BT GLOBAL SERVICES,26044624,"2,961.84 "
Department of Health,NHS Sheffield CCG,28/02/2019,C&M-GMS Cost of Drugs -Prescribing,LOCAL ENHANCED SERVICES,BUCHANAN ROAD SURGERY,26121111,72.01 
Department of Health,NHS Sheffield CCG,28/02/2019,C&M-GMS DES Minor Surgery,PRC DELEGATED CO-COMMISSIONING,BUCHANAN ROAD SURGERY,26121111,280.00 
Department of Health,NHS Sheffield CCG,28/02/2019,C&M-GMS Global Sum,PRC DELEGATED CO-COMMISSIONING,BUCHANAN ROAD SURGERY,26121111,"35,425.64 "
Department of Health,NHS Sheffield CCG,28/02/2019,C&M-GMS MPIG Correction Factor,PRC DELEGATED CO-COMMISSIONING,BUCHANAN ROAD SURGERY,26121111,"1,310.51 "
Department of Health,NHS Sheffield CCG,28/02/2019,C&M-GMS Prem Notional Rent,PRC DELEGATED CO-COMMISSIONING,BUCHANAN ROAD SURGERY,26121111,"2,595.83 "
Department of Health,NHS Sheffield CCG,28/02/2019,C&M-GMS Prof Fees Prescribing,PRC DELEGATED CO-COMMISSIONING,BUCHANAN ROAD SURGERY,26121111,28.27 
Department of Health,NHS Sheffield CCG,28/02/2019,C&M-GMS QOF Aspiration,PRC DELEGATED CO-COMMISSIONING,BUCHANAN ROAD SURGERY,26121111,"4,144.11 "
Department of Health,NHS Sheffield CCG,28/02/2019,C&M-PMS Contract Value,PRC DELEGATED CO-COMMISSIONING,BURNCROSS SURGERY,25926718,"121,727.76 "
Department of Health,NHS Sheffield CCG,28/02/2019,C&M-PMS DES Minor Surgery,PRC DELEGATED CO-COMMISSIONING,BURNCROSS SURGERY,25926718,"4,415.00 "
Department of Health,NHS Sheffield CCG,28/02/2019,C&M-PMS Prem Notional Rent,PRC DELEGATED CO-COMMISSIONING,BURNCROSS SURGERY,25926718,"14,058.33 "
Department of Health,NHS Sheffield CCG,28/02/2019,C&M-PMS QOF Aspiration,PRC DELEGATED CO-COMMISSIONING,BURNCROSS SURGERY,25926718,"16,082.74 "
Department of Health,NHS Sheffield CCG,28/02/2019,C&M-PMS Contract Value,PRC DELEGATED CO-COMMISSIONING,BURNGREAVE SURGERY,25926720,"57,106.37 "
Department of Health,NHS Sheffield CCG,28/02/2019,C&M-PMS DES Minor Surgery,PRC DELEGATED CO-COMMISSIONING,BURNGREAVE SURGERY,25926720,"1,565.00 "
Department of Health,NHS Sheffield CCG,28/02/2019,C&M-PMS Prem Notional Rent,PRC DELEGATED CO-COMMISSIONING,BURNGREAVE SURGERY,25926720,"6,622.92 "
Department of Health,NHS Sheffield CCG,28/02/2019,C&M-PMS Prem Water Rates,PRC DELEGATED CO-COMMISSIONING,BURNGREAVE SURGERY,25926720,336.98 
Department of Health,NHS Sheffield CCG,28/02/2019,C&M-PMS QOF Aspiration,PRC DELEGATED CO-COMMISSIONING,BURNGREAVE SURGERY,25926720,"4,881.27 "
Department of Health,NHS Sheffield CCG,28/02/2019,C&M-GMS Cost of Drugs -Prescribing,LOCAL ENHANCED SERVICES,CARTERKNOWLE & DORE MEDICAL PRACTICE,26121119,"4,494.98 "
Department of Health,NHS Sheffield CCG,28/02/2019,C&M-GMS DES Minor Surgery,PRC DELEGATED CO-COMMISSIONING,CARTERKNOWLE & DORE MEDICAL PRACTICE,26121119,"2,350.00 "
Department of Health,NHS Sheffield CCG,28/02/2019,C&M-GMS Global Sum,PRC DELEGATED CO-COMMISSIONING,CARTERKNOWLE & DORE MEDICAL PRACTICE,26121119,"84,355.76 "
Department of Health,NHS Sheffield CCG,28/02/2019,C&M-GMS MPIG Correction Factor,PRC DELEGATED CO-COMMISSIONING,CARTERKNOWLE & DORE MEDICAL PRACTICE,26121119,"1,494.59 "
Department of Health,NHS Sheffield CCG,28/02/2019,C&M-GMS PCO Locum Adop/Pat/Mat,PRC DELEGATED CO-COMMISSIONING,CARTERKNOWLE & DORE MEDICAL PRACTICE,26121119,"13,525.14 "
Department of Health,NHS Sheffield CCG,28/02/2019,C&M-GMS PCO Other,PRC DELEGATED CO-COMMISSIONING,CARTERKNOWLE & DORE MEDICAL PRACTICE,26121119,838.12 
Department of Health,NHS Sheffield CCG,28/02/2019,C&M-GMS Prem Notional Rent,PRC DELEGATED CO-COMMISSIONING,CARTERKNOWLE & DORE MEDICAL PRACTICE,26121119,"7,596.50 "
Department of Health,NHS Sheffield CCG,28/02/2019,C&M-GMS Prof Fees Prescribing,PRC DELEGATED CO-COMMISSIONING,CARTERKNOWLE & DORE MEDICAL PRACTICE,26121119,508.86 
Department of Health,NHS Sheffield CCG,28/02/2019,C&M-GMS QOF Aspiration,PRC DELEGATED CO-COMMISSIONING,CARTERKNOWLE & DORE MEDICAL PRACTICE,26121119,"10,163.70 "
Department of Health,NHS Sheffield CCG,28/02/2019,C&M-GMS Cost of Drugs -Prescribing,LOCAL ENHANCED SERVICES,CHARNOCK HEALTH PRIMARY CARE CENTRE,26121117,"2,283.69 "
Department of Health,NHS Sheffield CCG,28/02/2019,C&M-GMS DES Minor Surgery,PRC DELEGATED CO-COMMISSIONING,CHARNOCK HEALTH PRIMARY CARE CENTRE,26121117,"1,520.00 "
Department of Health,NHS Sheffield CCG,28/02/2019,C&M-GMS Global Sum,PRC DELEGATED CO-COMMISSIONING,CHARNOCK HEALTH PRIMARY CARE CENTRE,26121117,"41,848.60 "
Department of Health,NHS Sheffield CCG,28/02/2019,C&M-GMS MPIG Correction Factor,PRC DELEGATED CO-COMMISSIONING,CHARNOCK HEALTH PRIMARY CARE CENTRE,26121117,413.25 
Department of Health,NHS Sheffield CCG,28/02/2019,C&M-GMS PCO Locum Adop/Pat/Mat,PRC DELEGATED CO-COMMISSIONING,CHARNOCK HEALTH PRIMARY CARE CENTRE,26121117,"2,505.91 "
Department of Health,NHS Sheffield CCG,28/02/2019,C&M-GMS Prem Notional Rent,PRC DELEGATED CO-COMMISSIONING,CHARNOCK HEALTH PRIMARY CARE CENTRE,26121117,335.00 
Department of Health,NHS Sheffield CCG,28/02/2019,C&M-GMS Prem Water Rates,PRC DELEGATED CO-COMMISSIONING,CHARNOCK HEALTH PRIMARY CARE CENTRE,26121117,124.26 
Department of Health,NHS Sheffield CCG,28/02/2019,C&M-GMS Prof Fees Prescribing,PRC DELEGATED CO-COMMISSIONING,CHARNOCK HEALTH PRIMARY CARE CENTRE,26121117,580.82 
Department of Health,NHS Sheffield CCG,28/02/2019,C&M-GMS QOF Aspiration,PRC DELEGATED CO-COMMISSIONING,CHARNOCK HEALTH PRIMARY CARE CENTRE,26121117,"4,710.20 "
Department of Health,NHS Sheffield CCG,28/02/2019,Hcare Srv Rec Fdtn Trust-Contract Baseline,ACUTE COMMISSIONING,CHESTERFIELD ROYAL HOSPITAL NHS FOUNDATION TRUST,25943099,"38,509.00 "
Department of Health,NHS Sheffield CCG,28/02/2019,Hcare Srv Rec Fdtn Trust-Contract Baseline,ACUTE COMMISSIONING,CHESTERFIELD ROYAL HOSPITAL NHS FOUNDATION TRUST,25943484,"266,428.00 "
Department of Health,NHS Sheffield CCG,28/02/2019,Hcare Srv Rec Fdtn Trust-Non Contract,CLINICAL LEADS,CHESTERFIELD ROYAL HOSPITAL NHS FOUNDATION TRUST,26153650,"36,177.50 "
Department of Health,NHS Sheffield CCG,28/02/2019,Clinical&Medical-Independent Sector,ACUTE COMMISSIONING,CLAREMONT HOSPITAL,25885921,"65,047.00 "
Department of Health,NHS Sheffield CCG,28/02/2019,Voids and Subsidies,PRC DELEGATED CO-COMMISSIONING,COMMUNITY HEALTH PARTNERSHIPS LTD,25885897,"20,929.51 "
Department of Health,NHS Sheffield CCG,28/02/2019,Voids and Subsidies,RECHARGES NHS PROPERTY SERVICES LTD,COMMUNITY HEALTH PARTNERSHIPS LTD,25885897,"113,924.62 "
Department of Health,NHS Sheffield CCG,28/02/2019,C&M-GMS Cost of Drugs -Prescribing,LOCAL ENHANCED SERVICES,CROOKES PRACTICE,26121123,"1,376.86 "
Department of Health,NHS Sheffield CCG,28/02/2019,C&M-GMS Global Sum,PRC DELEGATED CO-COMMISSIONING,CROOKES PRACTICE,26121123,"50,172.87 "
Department of Health,NHS Sheffield CCG,28/02/2019,C&M-GMS MPIG Correction Factor,PRC DELEGATED CO-COMMISSIONING,CROOKES PRACTICE,26121123,"1,545.92 "
Department of Health,NHS Sheffield CCG,28/02/2019,C&M-GMS PCO Other,PRC DELEGATED CO-COMMISSIONING,CROOKES PRACTICE,26121123,559.24 
Department of Health,NHS Sheffield CCG,28/02/2019,C&M-GMS PCO Seniority,PRC DELEGATED CO-COMMISSIONING,CROOKES PRACTICE,26121123,"3,562.83 "
Department of Health,NHS Sheffield CCG,28/02/2019,C&M-GMS Prem Notional Rent,PRC DELEGATED CO-COMMISSIONING,CROOKES PRACTICE,26121123,"3,874.67 "
Department of Health,NHS Sheffield CCG,28/02/2019,C&M-GMS Prof Fees Prescribing,PRC DELEGATED CO-COMMISSIONING,CROOKES PRACTICE,26121123,323.82 
Department of Health,NHS Sheffield CCG,28/02/2019,C&M-GMS QOF Aspiration,PRC DELEGATED CO-COMMISSIONING,CROOKES PRACTICE,26121123,"5,056.52 "
Department of Health,NHS Sheffield CCG,28/02/2019,Voids and Subsidies,RECHARGES NHS PROPERTY SERVICES LTD,DARNALL WELL BEING,26187006,"119,163.98 "
Department of Health,NHS Sheffield CCG,28/02/2019,Voids and Subsidies,RECHARGES NHS PROPERTY SERVICES LTD,DARNALL WELL BEING,26187030,"117,173.29 "
Department of Health,NHS Sheffield CCG,28/02/2019,C&M-PMS Contract Value,PRC DELEGATED CO-COMMISSIONING,DEEPCAR MEDICAL CENTRE,25926724,"41,326.87 "
Department of Health,NHS Sheffield CCG,28/02/2019,C&M-PMS DES Learn Dsblty Hlth Chk,PRC DELEGATED CO-COMMISSIONING,DEEPCAR MEDICAL CENTRE,25926724,840.00 
Department of Health,NHS Sheffield CCG,28/02/2019,C&M-PMS Prem Healthcentre Rent,PRC DELEGATED CO-COMMISSIONING,DEEPCAR MEDICAL CENTRE,25926724,"29,067.58 "
Department of Health,NHS Sheffield CCG,28/02/2019,C&M-PMS QOF Aspiration,PRC DELEGATED CO-COMMISSIONING,DEEPCAR MEDICAL CENTRE,25926724,"4,182.29 "
Department of Health,NHS Sheffield CCG,28/02/2019,C&M-GMS Cost of Drugs -Prescribing,LOCAL ENHANCED SERVICES,DEVONSHIRE GREEN MEDICAL CENTRE,26121126,894.48 
Department of Health,NHS Sheffield CCG,28/02/2019,C&M-GMS DES Minor Surgery,PRC DELEGATED CO-COMMISSIONING,DEVONSHIRE GREEN MEDICAL CENTRE,26121126,525.00 
Department of Health,NHS Sheffield CCG,28/02/2019,C&M-GMS Global Sum,PRC DELEGATED CO-COMMISSIONING,DEVONSHIRE GREEN MEDICAL CENTRE,26121126,"45,766.64 "
Department of Health,NHS Sheffield CCG,28/02/2019,C&M-GMS MPIG Correction Factor,PRC DELEGATED CO-COMMISSIONING,DEVONSHIRE GREEN MEDICAL CENTRE,26121126,"3,231.20 "
Department of Health,NHS Sheffield CCG,28/02/2019,C&M-GMS Prem Notional Rent,PRC DELEGATED CO-COMMISSIONING,DEVONSHIRE GREEN MEDICAL CENTRE,26121126,"5,987.50 "
Department of Health,NHS Sheffield CCG,28/02/2019,C&M-GMS Prof Fees Prescribing,PRC DELEGATED CO-COMMISSIONING,DEVONSHIRE GREEN MEDICAL CENTRE,26121126,218.45 
Department of Health,NHS Sheffield CCG,28/02/2019,C&M-GMS QOF Aspiration,PRC DELEGATED CO-COMMISSIONING,DEVONSHIRE GREEN MEDICAL CENTRE,26121126,"4,641.81 "
Department of Health,NHS Sheffield CCG,28/02/2019,Hcare Srv Rec Fdtn Trust-Contract Baseline,ACUTE COMMISSIONING,DONCASTER AND BASSETLAW HOSPITALS NHS FOUNDATION TRUST,25943167,"35,160.00 "
Department of Health,NHS Sheffield CCG,28/02/2019,Hcare Srv Rec Fdtn Trust-Non Contract,CLINICAL LEADS,DONCASTER AND BASSETLAW HOSPITALS NHS FOUNDATION TRUST,26089925,"151,908.00 "
Department of Health,NHS Sheffield CCG,28/02/2019,Other Gen Supplies & Srv,BEREAVEMENT SERVICE,DONCASTER AND BASSETLAW HOSPITALS NHS FOUNDATION TRUST,26146012,"326,000.00 "
Department of Health,NHS Sheffield CCG,28/02/2019,C&M-PMS Contract Value,PRC DELEGATED CO-COMMISSIONING,DOVERCOURT SURGERY,25926726,"72,767.61 "
Department of Health,NHS Sheffield CCG,28/02/2019,C&M-PMS DES Learn Dsblty Hlth Chk,PRC DELEGATED CO-COMMISSIONING,DOVERCOURT SURGERY,25926726,"1,260.00 "
Department of Health,NHS Sheffield CCG,28/02/2019,C&M-PMS DES Minor Surgery,PRC DELEGATED CO-COMMISSIONING,DOVERCOURT SURGERY,25926726,"1,720.00 "
Department of Health,NHS Sheffield CCG,28/02/2019,C&M-PMS Out of Hours Opt Outs,PRC DELEGATED CO-COMMISSIONING,DOVERCOURT SURGERY,25926726,14.67 
Department of Health,NHS Sheffield CCG,28/02/2019,C&M-PMS PCO Other,PRC DELEGATED CO-COMMISSIONING,DOVERCOURT SURGERY,25926726,584.52 
Department of Health,NHS Sheffield CCG,28/02/2019,C&M-PMS Prem Actual Rent,PRC DELEGATED CO-COMMISSIONING,DOVERCOURT SURGERY,25926726,"12,400.00 "
Department of Health,NHS Sheffield CCG,28/02/2019,C&M-PMS Prem Notional Rent,PRC DELEGATED CO-COMMISSIONING,DOVERCOURT SURGERY,25926726,"1,708.34 "
Department of Health,NHS Sheffield CCG,28/02/2019,C&M-PMS QOF Aspiration,PRC DELEGATED CO-COMMISSIONING,DOVERCOURT SURGERY,25926726,"7,443.07 "
Department of Health,NHS Sheffield CCG,28/02/2019,C&M-PMS Contract Value,PRC DELEGATED CO-COMMISSIONING,DR MEHROTRA & PARTNER,25926728,"27,872.06 "
Department of Health,NHS Sheffield CCG,28/02/2019,C&M-PMS PCO Other,PRC DELEGATED CO-COMMISSIONING,DR MEHROTRA & PARTNER,25926728,621.00 
Department of Health,NHS Sheffield CCG,28/02/2019,C&M-PMS Prem Actual Rent,PRC DELEGATED CO-COMMISSIONING,DR MEHROTRA & PARTNER,25926728,"2,650.00 "
Department of Health,NHS Sheffield CCG,28/02/2019,C&M-PMS Prem Notional Rent,PRC DELEGATED CO-COMMISSIONING,DR MEHROTRA & PARTNER,25926728,"5,157.29 "
Department of Health,NHS Sheffield CCG,28/02/2019,C&M-PMS Prem Water Rates,PRC DELEGATED CO-COMMISSIONING,DR MEHROTRA & PARTNER,25926728,323.57 
Department of Health,NHS Sheffield CCG,28/02/2019,C&M-PMS QOF Aspiration,PRC DELEGATED CO-COMMISSIONING,DR MEHROTRA & PARTNER,25926728,"3,078.44 "
Department of Health,NHS Sheffield CCG,28/02/2019,C&M-PMS Contract Value,PRC DELEGATED CO-COMMISSIONING,DR MILNER & PARTNERS,25926730,"75,515.81 "
Department of Health,NHS Sheffield CCG,28/02/2019,C&M-PMS DES Minor Surgery,PRC DELEGATED CO-COMMISSIONING,DR MILNER & PARTNERS,25926730,"2,210.00 "
Department of Health,NHS Sheffield CCG,28/02/2019,C&M-PMS Out of Hours Opt Outs,PRC DELEGATED CO-COMMISSIONING,DR MILNER & PARTNERS,25926730,42.54 
Department of Health,NHS Sheffield CCG,28/02/2019,C&M-PMS Prem Actual Rent,PRC DELEGATED CO-COMMISSIONING,DR MILNER & PARTNERS,25926730,"11,382.00 "
Department of Health,NHS Sheffield CCG,28/02/2019,C&M-PMS Prem Notional Rent,PRC DELEGATED CO-COMMISSIONING,DR MILNER & PARTNERS,25926730,"4,462.42 "
Department of Health,NHS Sheffield CCG,28/02/2019,C&M-PMS Prem Rates,PRC DELEGATED CO-COMMISSIONING,DR MILNER & PARTNERS,25926730,"2,464.00 "
Department of Health,NHS Sheffield CCG,28/02/2019,C&M-PMS Prem Water Rates,PRC DELEGATED CO-COMMISSIONING,DR MILNER & PARTNERS,25926730,"1,074.95 "
Department of Health,NHS Sheffield CCG,28/02/2019,C&M-PMS QOF Aspiration,PRC DELEGATED CO-COMMISSIONING,DR MILNER & PARTNERS,25926730,"6,553.23 "
Department of Health,NHS Sheffield CCG,28/02/2019,C&M-GMS Cost of Drugs -Prescribing,LOCAL ENHANCED SERVICES,DUKE MEDICAL CENTRE,26121134,"1,473.93 "
Department of Health,NHS Sheffield CCG,28/02/2019,C&M-GMS DES Minor Surgery,PRC DELEGATED CO-COMMISSIONING,DUKE MEDICAL CENTRE,26121134,720.00 
Department of Health,NHS Sheffield CCG,28/02/2019,C&M-GMS Global Sum,PRC DELEGATED CO-COMMISSIONING,DUKE MEDICAL CENTRE,26121134,"57,624.97 "
Department of Health,NHS Sheffield CCG,28/02/2019,C&M-GMS MPIG Correction Factor,PRC DELEGATED CO-COMMISSIONING,DUKE MEDICAL CENTRE,26121134,612.51 
Department of Health,NHS Sheffield CCG,28/02/2019,C&M-GMS PCO Other,PRC DELEGATED CO-COMMISSIONING,DUKE MEDICAL CENTRE,26121134,495.64 
Department of Health,NHS Sheffield CCG,28/02/2019,C&M-GMS Prem Notional Rent,PRC DELEGATED CO-COMMISSIONING,DUKE MEDICAL CENTRE,26121134,"5,721.67 "
Department of Health,NHS Sheffield CCG,28/02/2019,C&M-GMS Prof Fees Prescribing,PRC DELEGATED CO-COMMISSIONING,DUKE MEDICAL CENTRE,26121134,318.68 
Department of Health,NHS Sheffield CCG,28/02/2019,C&M-GMS QOF Aspiration,PRC DELEGATED CO-COMMISSIONING,DUKE MEDICAL CENTRE,26121134,"4,948.64 "
Department of Health,NHS Sheffield CCG,28/02/2019,C&M-PMS Contract Value,PRC DELEGATED CO-COMMISSIONING,DUNNINC ROAD SURGERY,25926732,"24,109.99 "
Department of Health,NHS Sheffield CCG,28/02/2019,C&M-PMS DES Minor Surgery,PRC DELEGATED CO-COMMISSIONING,DUNNINC ROAD SURGERY,25926732,"2,485.00 "
Department of Health,NHS Sheffield CCG,28/02/2019,C&M-PMS Prem Notional Rent,PRC DELEGATED CO-COMMISSIONING,DUNNINC ROAD SURGERY,25926732,"1,664.58 "
Department of Health,NHS Sheffield CCG,28/02/2019,C&M-PMS QOF Aspiration,PRC DELEGATED CO-COMMISSIONING,DUNNINC ROAD SURGERY,25926732,"2,554.49 "
Department of Health,NHS Sheffield CCG,28/02/2019,C&M-PMS Contract Value,PRC DELEGATED CO-COMMISSIONING,DYKES HALL MEDICAL CENTRE,25926734,"73,038.20 "
Department of Health,NHS Sheffield CCG,28/02/2019,C&M-PMS DES Minor Surgery,PRC DELEGATED CO-COMMISSIONING,DYKES HALL MEDICAL CENTRE,25926734,600.00 
Department of Health,NHS Sheffield CCG,28/02/2019,C&M-PMS Out of Hours Opt Outs,PRC DELEGATED CO-COMMISSIONING,DYKES HALL MEDICAL CENTRE,25926734,12.02 
Department of Health,NHS Sheffield CCG,28/02/2019,C&M-PMS Prem Notional Rent,PRC DELEGATED CO-COMMISSIONING,DYKES HALL MEDICAL CENTRE,25926734,"5,377.08 "
Department of Health,NHS Sheffield CCG,28/02/2019,C&M-PMS QOF Aspiration,PRC DELEGATED CO-COMMISSIONING,DYKES HALL MEDICAL CENTRE,25926734,"8,079.17 "
Department of Health,NHS Sheffield CCG,28/02/2019,C&M-PMS Contract Value,PRC DELEGATED CO-COMMISSIONING,EAST BANK MEDICAL CENTRE,25956120,"48,046.12 "
Department of Health,NHS Sheffield CCG,28/02/2019,C&M-PMS DES Minor Surgery,PRC DELEGATED CO-COMMISSIONING,EAST BANK MEDICAL CENTRE,25956120,795.00 
Department of Health,NHS Sheffield CCG,28/02/2019,C&M-PMS Prem Notional Rent,PRC DELEGATED CO-COMMISSIONING,EAST BANK MEDICAL CENTRE,25956120,"10,583.34 "
Department of Health,NHS Sheffield CCG,28/02/2019,C&M-PMS Prem Rates,PRC DELEGATED CO-COMMISSIONING,EAST BANK MEDICAL CENTRE,25956120,"2,850.50 "
Department of Health,NHS Sheffield CCG,28/02/2019,C&M-PMS QOF Aspiration,PRC DELEGATED CO-COMMISSIONING,EAST BANK MEDICAL CENTRE,25956120,"4,881.64 "
Department of Health,NHS Sheffield CCG,28/02/2019,C&M-GMS Cost of Drugs -Prescribing,LOCAL ENHANCED SERVICES,ECCLESFIELD GROUP PRACTICE,26121130,"2,498.53 "
Department of Health,NHS Sheffield CCG,28/02/2019,C&M-GMS DES Learn Dsblty Hlth Chk,PRC DELEGATED CO-COMMISSIONING,ECCLESFIELD GROUP PRACTICE,26121130,"2,800.00 "
Department of Health,NHS Sheffield CCG,28/02/2019,C&M-GMS DES Minor Surgery,PRC DELEGATED CO-COMMISSIONING,ECCLESFIELD GROUP PRACTICE,26121130,520.00 
Department of Health,NHS Sheffield CCG,28/02/2019,C&M-GMS Global Sum,PRC DELEGATED CO-COMMISSIONING,ECCLESFIELD GROUP PRACTICE,26121130,"67,421.93 "
Department of Health,NHS Sheffield CCG,28/02/2019,C&M-GMS PCO Other,PRC DELEGATED CO-COMMISSIONING,ECCLESFIELD GROUP PRACTICE,26121130,572.76 
Department of Health,NHS Sheffield CCG,28/02/2019,C&M-GMS Prem Notional Rent,PRC DELEGATED CO-COMMISSIONING,ECCLESFIELD GROUP PRACTICE,26121130,"6,805.42 "
Department of Health,NHS Sheffield CCG,28/02/2019,C&M-GMS Prem Water Rates,PRC DELEGATED CO-COMMISSIONING,ECCLESFIELD GROUP PRACTICE,26121130,495.71 
Department of Health,NHS Sheffield CCG,28/02/2019,C&M-GMS Prof Fees Prescribing,PRC DELEGATED CO-COMMISSIONING,ECCLESFIELD GROUP PRACTICE,26121130,588.53 
Department of Health,NHS Sheffield CCG,28/02/2019,C&M-GMS QOF Aspiration,PRC DELEGATED CO-COMMISSIONING,ECCLESFIELD GROUP PRACTICE,26121130,"8,811.44 "
Department of Health,NHS Sheffield CCG,28/02/2019,C&M-GMS Cost of Drugs -Prescribing,LOCAL ENHANCED SERVICES,ELM LANE SURGERY,26121132,"1,405.54 "
Department of Health,NHS Sheffield CCG,28/02/2019,C&M-GMS DES Minor Surgery,PRC DELEGATED CO-COMMISSIONING,ELM LANE SURGERY,26121132,85.00 
Department of Health,NHS Sheffield CCG,28/02/2019,C&M-GMS Global Sum,PRC DELEGATED CO-COMMISSIONING,ELM LANE SURGERY,26121132,"39,526.15 "
Department of Health,NHS Sheffield CCG,28/02/2019,C&M-GMS MPIG Correction Factor,PRC DELEGATED CO-COMMISSIONING,ELM LANE SURGERY,26121132,838.53 
Department of Health,NHS Sheffield CCG,28/02/2019,C&M-GMS Prem Notional Rent,PRC DELEGATED CO-COMMISSIONING,ELM LANE SURGERY,26121132,"5,305.50 "
Department of Health,NHS Sheffield CCG,28/02/2019,C&M-GMS Prof Fees Prescribing,PRC DELEGATED CO-COMMISSIONING,ELM LANE SURGERY,26121132,439.47 
Department of Health,NHS Sheffield CCG,28/02/2019,C&M-GMS QOF Aspiration,PRC DELEGATED CO-COMMISSIONING,ELM LANE SURGERY,26121132,"4,467.14 "
Department of Health,NHS Sheffield CCG,28/02/2019,Cont Care-Physical Disab (<65),CHC ADULT FULLY FUNDED,FAIRWINDS HEALTH CARE LTD,25943992,"35,409.76 "
Department of Health,NHS Sheffield CCG,28/02/2019,C&M-PMS Contract Value,PRC DELEGATED CO-COMMISSIONING,FALKLAND HOUSE,25926739,"25,925.02 "
Department of Health,NHS Sheffield CCG,28/02/2019,C&M-PMS DES Minor Surgery,PRC DELEGATED CO-COMMISSIONING,FALKLAND HOUSE,25926739,680.00 
Department of Health,NHS Sheffield CCG,28/02/2019,C&M-PMS Out of Hours Opt Outs,PRC DELEGATED CO-COMMISSIONING,FALKLAND HOUSE,25926739,7.98 
Department of Health,NHS Sheffield CCG,28/02/2019,C&M-PMS PCO Other,PRC DELEGATED CO-COMMISSIONING,FALKLAND HOUSE,25926739,307.64 
Department of Health,NHS Sheffield CCG,28/02/2019,C&M-PMS Prem Notional Rent,PRC DELEGATED CO-COMMISSIONING,FALKLAND HOUSE,25926739,"1,866.67 "
Department of Health,NHS Sheffield CCG,28/02/2019,C&M-PMS Prem Water Rates,PRC DELEGATED CO-COMMISSIONING,FALKLAND HOUSE,25926739,71.21 
Department of Health,NHS Sheffield CCG,28/02/2019,C&M-PMS QOF Aspiration,PRC DELEGATED CO-COMMISSIONING,FALKLAND HOUSE,25926739,"2,902.49 "
Department of Health,NHS Sheffield CCG,28/02/2019,C&M-GMS Cost of Drugs -Prescribing,LOCAL ENHANCED SERVICES,FAR LANE MEDICAL CENTRE,26121141,733.15 
Department of Health,NHS Sheffield CCG,28/02/2019,C&M-GMS DES Learn Dsblty Hlth Chk,PRC DELEGATED CO-COMMISSIONING,FAR LANE MEDICAL CENTRE,26121141,"1,400.00 "
Department of Health,NHS Sheffield CCG,28/02/2019,C&M-GMS DES Minor Surgery,PRC DELEGATED CO-COMMISSIONING,FAR LANE MEDICAL CENTRE,26121141,"2,735.00 "
Department of Health,NHS Sheffield CCG,28/02/2019,C&M-GMS Global Sum,PRC DELEGATED CO-COMMISSIONING,FAR LANE MEDICAL CENTRE,26121141,"54,818.94 "
Department of Health,NHS Sheffield CCG,28/02/2019,C&M-GMS PCO Other,PRC DELEGATED CO-COMMISSIONING,FAR LANE MEDICAL CENTRE,26121141,518.36 
Department of Health,NHS Sheffield CCG,28/02/2019,C&M-GMS Prem Notional Rent,PRC DELEGATED CO-COMMISSIONING,FAR LANE MEDICAL CENTRE,26121141,"3,462.50 "
Department of Health,NHS Sheffield CCG,28/02/2019,C&M-GMS Prof Fees Prescribing,PRC DELEGATED CO-COMMISSIONING,FAR LANE MEDICAL CENTRE,26121141,267.28 
Department of Health,NHS Sheffield CCG,28/02/2019,C&M-GMS QOF Aspiration,PRC DELEGATED CO-COMMISSIONING,FAR LANE MEDICAL CENTRE,26121141,"5,824.23 "
Department of Health,NHS Sheffield CCG,28/02/2019,C&M-PMS Contract Value,PRC DELEGATED CO-COMMISSIONING,FIRTH PARK SURGERY,25926737,"74,421.36 "
Department of Health,NHS Sheffield CCG,28/02/2019,C&M-PMS DES Learn Dsblty Hlth Chk,PRC DELEGATED CO-COMMISSIONING,FIRTH PARK SURGERY,25926737,"1,400.00 "
Department of Health,NHS Sheffield CCG,28/02/2019,C&M-PMS DES Minor Surgery,PRC DELEGATED CO-COMMISSIONING,FIRTH PARK SURGERY,25926737,"2,165.00 "
Department of Health,NHS Sheffield CCG,28/02/2019,C&M-PMS Out of Hours Opt Outs,PRC DELEGATED CO-COMMISSIONING,FIRTH PARK SURGERY,25926737,11.68 
Department of Health,NHS Sheffield CCG,28/02/2019,C&M-PMS PCO Locum Adop/Pat/Mat,PRC DELEGATED CO-COMMISSIONING,FIRTH PARK SURGERY,25926737,"3,818.89 "
Department of Health,NHS Sheffield CCG,28/02/2019,C&M-PMS Prem Notional Rent,PRC DELEGATED CO-COMMISSIONING,FIRTH PARK SURGERY,25926737,"4,500.00 "
Department of Health,NHS Sheffield CCG,28/02/2019,C&M-PMS Prem Rates,PRC DELEGATED CO-COMMISSIONING,FIRTH PARK SURGERY,25926737,"1,330.00 "
Department of Health,NHS Sheffield CCG,28/02/2019,C&M-PMS QOF Aspiration,PRC DELEGATED CO-COMMISSIONING,FIRTH PARK SURGERY,25926737,"7,359.15 "
Department of Health,NHS Sheffield CCG,28/02/2019,C&M-GMS Cost of Drugs -Prescribing,LOCAL ENHANCED SERVICES,FLOWERS HEALTH CENTRE,26121209,604.90 
Department of Health,NHS Sheffield CCG,28/02/2019,C&M-GMS DES Minor Surgery,PRC DELEGATED CO-COMMISSIONING,FLOWERS HEALTH CENTRE,26121209,400.00 
Department of Health,NHS Sheffield CCG,28/02/2019,C&M-GMS Global Sum,PRC DELEGATED CO-COMMISSIONING,FLOWERS HEALTH CENTRE,26121209,"36,838.54 "
Department of Health,NHS Sheffield CCG,28/02/2019,C&M-GMS MPIG Correction Factor,PRC DELEGATED CO-COMMISSIONING,FLOWERS HEALTH CENTRE,26121209,"1,476.31 "
Department of Health,NHS Sheffield CCG,28/02/2019,C&M-GMS Prem Healthcentre Rent,PRC DELEGATED CO-COMMISSIONING,FLOWERS HEALTH CENTRE,26121209,"33,513.30 "
Department of Health,NHS Sheffield CCG,28/02/2019,C&M-GMS Prof Fees Prescribing,PRC DELEGATED CO-COMMISSIONING,FLOWERS HEALTH CENTRE,26121209,172.19 
Department of Health,NHS Sheffield CCG,28/02/2019,C&M-GMS QOF Aspiration,PRC DELEGATED CO-COMMISSIONING,FLOWERS HEALTH CENTRE,26121209,"4,241.34 "
Department of Health,NHS Sheffield CCG,28/02/2019,C&M-PMS Practice Transformational Support,LOCAL ENHANCED SERVICES,FOUNDRY MEDICAL GROUP,26187364,"150,000.00 "
Department of Health,NHS Sheffield CCG,28/02/2019,Cont Care-Physical Disab (<65),CHC ADULT FULLY FUNDED,FOUR SEASONS HEALTH CARE LTD,25943999,"27,964.68 "
Department of Health,NHS Sheffield CCG,28/02/2019,C&M-PMS Contract Value,PRC DELEGATED CO-COMMISSIONING,FOXHILL MEDICAL CENTRE SHEFFIELD,25926785,"51,983.21 "
Department of Health,NHS Sheffield CCG,28/02/2019,C&M-PMS DES Learn Dsblty Hlth Chk,PRC DELEGATED CO-COMMISSIONING,FOXHILL MEDICAL CENTRE SHEFFIELD,25926785,560.00 
Department of Health,NHS Sheffield CCG,28/02/2019,C&M-PMS DES Minor Surgery,PRC DELEGATED CO-COMMISSIONING,FOXHILL MEDICAL CENTRE SHEFFIELD,25926785,570.00 
Department of Health,NHS Sheffield CCG,28/02/2019,C&M-PMS Out of Hours Opt Outs,PRC DELEGATED CO-COMMISSIONING,FOXHILL MEDICAL CENTRE SHEFFIELD,25926785,67.18 
Department of Health,NHS Sheffield CCG,28/02/2019,C&M-PMS PCO Locum Adop/Pat/Mat,PRC DELEGATED CO-COMMISSIONING,FOXHILL MEDICAL CENTRE SHEFFIELD,25926785,"8,489.32 "
Department of Health,NHS Sheffield CCG,28/02/2019,C&M-PMS PCO Other,PRC DELEGATED CO-COMMISSIONING,FOXHILL MEDICAL CENTRE SHEFFIELD,25926785,447.28 
Department of Health,NHS Sheffield CCG,28/02/2019,C&M-PMS Prem Healthcentre Rent,PRC DELEGATED CO-COMMISSIONING,FOXHILL MEDICAL CENTRE SHEFFIELD,25926785,"46,751.16 "
Department of Health,NHS Sheffield CCG,28/02/2019,C&M-PMS QOF Aspiration,PRC DELEGATED CO-COMMISSIONING,FOXHILL MEDICAL CENTRE SHEFFIELD,25926785,"5,580.51 "
Department of Health,NHS Sheffield CCG,28/02/2019,C&M-PMS Contract Value,PRC DELEGATED CO-COMMISSIONING,GLEADLESS MEDICAL CENTRE,25926741,"69,435.00 "
Department of Health,NHS Sheffield CCG,28/02/2019,C&M-PMS DES Learn Dsblty Hlth Chk,PRC DELEGATED CO-COMMISSIONING,GLEADLESS MEDICAL CENTRE,25926741,"1,960.00 "
Department of Health,NHS Sheffield CCG,28/02/2019,C&M-PMS DES Minor Surgery,PRC DELEGATED CO-COMMISSIONING,GLEADLESS MEDICAL CENTRE,25926741,480.00 
Department of Health,NHS Sheffield CCG,28/02/2019,C&M-PMS Out of Hours Opt Outs,PRC DELEGATED CO-COMMISSIONING,GLEADLESS MEDICAL CENTRE,25926741,101.78 
Department of Health,NHS Sheffield CCG,28/02/2019,C&M-PMS PCO Locum Adop/Pat/Mat,PRC DELEGATED CO-COMMISSIONING,GLEADLESS MEDICAL CENTRE,25926741,"4,829.81 "
Department of Health,NHS Sheffield CCG,28/02/2019,C&M-PMS PCO Other,PRC DELEGATED CO-COMMISSIONING,GLEADLESS MEDICAL CENTRE,25926741,619.12 
Department of Health,NHS Sheffield CCG,28/02/2019,C&M-PMS Prem Notional Rent,PRC DELEGATED CO-COMMISSIONING,GLEADLESS MEDICAL CENTRE,25926741,"6,750.00 "
Department of Health,NHS Sheffield CCG,28/02/2019,C&M-PMS QOF Aspiration,PRC DELEGATED CO-COMMISSIONING,GLEADLESS MEDICAL CENTRE,25926741,"7,712.98 "
Department of Health,NHS Sheffield CCG,28/02/2019,C&M-GMS Cost of Drugs -Prescribing,LOCAL ENHANCED SERVICES,GRENOSIDE SURGERY,26121148,"1,632.46 "
Department of Health,NHS Sheffield CCG,28/02/2019,C&M-GMS DES Minor Surgery,PRC DELEGATED CO-COMMISSIONING,GRENOSIDE SURGERY,26121148,610.00 
Department of Health,NHS Sheffield CCG,28/02/2019,C&M-GMS Global Sum,PRC DELEGATED CO-COMMISSIONING,GRENOSIDE SURGERY,26121148,"57,269.55 "
Department of Health,NHS Sheffield CCG,28/02/2019,C&M-GMS PCO Locum Adop/Pat/Mat,PRC DELEGATED CO-COMMISSIONING,GRENOSIDE SURGERY,26121148,"6,082.20 "
Department of Health,NHS Sheffield CCG,28/02/2019,C&M-GMS Prem Notional Rent,PRC DELEGATED CO-COMMISSIONING,GRENOSIDE SURGERY,26121148,"8,110.42 "
Department of Health,NHS Sheffield CCG,28/02/2019,C&M-GMS Prof Fees Prescribing,PRC DELEGATED CO-COMMISSIONING,GRENOSIDE SURGERY,26121148,241.58 
Department of Health,NHS Sheffield CCG,28/02/2019,C&M-GMS QOF Aspiration,PRC DELEGATED CO-COMMISSIONING,GRENOSIDE SURGERY,26121148,"5,655.38 "
Department of Health,NHS Sheffield CCG,28/02/2019,C&M-GMS Cost of Drugs -Prescribing,LOCAL ENHANCED SERVICES,GREYSTONES MEDICAL CENTRE,26121150,539.35 
Department of Health,NHS Sheffield CCG,28/02/2019,C&M-GMS DES Minor Surgery,PRC DELEGATED CO-COMMISSIONING,GREYSTONES MEDICAL CENTRE,26121150,375.00 
Department of Health,NHS Sheffield CCG,28/02/2019,C&M-GMS GP Statutory Levy,PRC DELEGATED CO-COMMISSIONING,GREYSTONES MEDICAL CENTRE,26121150,87.15 
Department of Health,NHS Sheffield CCG,28/02/2019,C&M-GMS Global Sum,PRC DELEGATED CO-COMMISSIONING,GREYSTONES MEDICAL CENTRE,26121150,"19,612.97 "
Department of Health,NHS Sheffield CCG,28/02/2019,C&M-GMS MPIG Correction Factor,PRC DELEGATED CO-COMMISSIONING,GREYSTONES MEDICAL CENTRE,26121150,"1,104.46 "
Department of Health,NHS Sheffield CCG,28/02/2019,C&M-GMS PCO Other,PRC DELEGATED CO-COMMISSIONING,GREYSTONES MEDICAL CENTRE,26121150,292.48 
Department of Health,NHS Sheffield CCG,28/02/2019,C&M-GMS Prem Notional Rent,PRC DELEGATED CO-COMMISSIONING,GREYSTONES MEDICAL CENTRE,26121150,"2,885.42 "
Department of Health,NHS Sheffield CCG,28/02/2019,C&M-GMS Prem Rates,PRC DELEGATED CO-COMMISSIONING,GREYSTONES MEDICAL CENTRE,26121150,538.00 
Department of Health,NHS Sheffield CCG,28/02/2019,C&M-GMS Prof Fees Prescribing,PRC DELEGATED CO-COMMISSIONING,GREYSTONES MEDICAL CENTRE,26121150,113.08 
Department of Health,NHS Sheffield CCG,28/02/2019,C&M-GMS QOF Aspiration,PRC DELEGATED CO-COMMISSIONING,GREYSTONES MEDICAL CENTRE,26121150,"2,246.27 "
Department of Health,NHS Sheffield CCG,28/02/2019,C&M-GMS Voluntary Levy,PRC DELEGATED CO-COMMISSIONING,GREYSTONES MEDICAL CENTRE,26121150,14.52 
Department of Health,NHS Sheffield CCG,28/02/2019,C&M-PMS Contract Value,PRC DELEGATED CO-COMMISSIONING,HACKENTHORPE MEDICAL CENTRE,25926743,"48,555.66 "
Department of Health,NHS Sheffield CCG,28/02/2019,C&M-PMS DES Learn Dsblty Hlth Chk,PRC DELEGATED CO-COMMISSIONING,HACKENTHORPE MEDICAL CENTRE,25926743,980.00 
Department of Health,NHS Sheffield CCG,28/02/2019,C&M-PMS DES Minor Surgery,PRC DELEGATED CO-COMMISSIONING,HACKENTHORPE MEDICAL CENTRE,25926743,"1,100.00 "
Department of Health,NHS Sheffield CCG,28/02/2019,C&M-PMS Out of Hours Opt Outs,PRC DELEGATED CO-COMMISSIONING,HACKENTHORPE MEDICAL CENTRE,25926743,14.50 
Department of Health,NHS Sheffield CCG,28/02/2019,C&M-PMS PCO Locum Adop/Pat/Mat,PRC DELEGATED CO-COMMISSIONING,HACKENTHORPE MEDICAL CENTRE,25926743,"24,652.94 "
Department of Health,NHS Sheffield CCG,28/02/2019,C&M-PMS PCO Other,PRC DELEGATED CO-COMMISSIONING,HACKENTHORPE MEDICAL CENTRE,25926743,480.76 
Department of Health,NHS Sheffield CCG,28/02/2019,C&M-PMS Prem Notional Rent,PRC DELEGATED CO-COMMISSIONING,HACKENTHORPE MEDICAL CENTRE,25926743,"4,981.25 "
Department of Health,NHS Sheffield CCG,28/02/2019,C&M-PMS QOF Aspiration,PRC DELEGATED CO-COMMISSIONING,HACKENTHORPE MEDICAL CENTRE,25926743,"6,346.88 "
Department of Health,NHS Sheffield CCG,28/02/2019,C&M-GMS Cost of Drugs -Prescribing,LOCAL ENHANCED SERVICES,HANDSWORTH MEDICAL PRACTICE SHEFFIELD,26121146,"2,136.61 "
Department of Health,NHS Sheffield CCG,28/02/2019,C&M-GMS DES Minor Surgery,PRC DELEGATED CO-COMMISSIONING,HANDSWORTH MEDICAL PRACTICE SHEFFIELD,26121146,360.00 
Department of Health,NHS Sheffield CCG,28/02/2019,C&M-GMS Global Sum,PRC DELEGATED CO-COMMISSIONING,HANDSWORTH MEDICAL PRACTICE SHEFFIELD,26121146,"75,435.85 "
Department of Health,NHS Sheffield CCG,28/02/2019,C&M-GMS Prem Notional Rent,PRC DELEGATED CO-COMMISSIONING,HANDSWORTH MEDICAL PRACTICE SHEFFIELD,26121146,"3,321.66 "
Department of Health,NHS Sheffield CCG,28/02/2019,C&M-GMS Prem Water Rates,PRC DELEGATED CO-COMMISSIONING,HANDSWORTH MEDICAL PRACTICE SHEFFIELD,26121146,327.33 
Department of Health,NHS Sheffield CCG,28/02/2019,C&M-GMS Prof Fees Prescribing,PRC DELEGATED CO-COMMISSIONING,HANDSWORTH MEDICAL PRACTICE SHEFFIELD,26121146,434.33 
Department of Health,NHS Sheffield CCG,28/02/2019,C&M-GMS QOF Aspiration,PRC DELEGATED CO-COMMISSIONING,HANDSWORTH MEDICAL PRACTICE SHEFFIELD,26121146,"7,379.76 "
Department of Health,NHS Sheffield CCG,28/02/2019,C&M-GMS DES Learn Dsblty Hlth Chk,PRC DELEGATED CO-COMMISSIONING,HAROLD STREET MEDICAL CENTRE,26132098,280.00 
Department of Health,NHS Sheffield CCG,28/02/2019,C&M-GMS Global Sum,PRC DELEGATED CO-COMMISSIONING,HAROLD STREET MEDICAL CENTRE,26132098,"20,783.31 "
Department of Health,NHS Sheffield CCG,28/02/2019,C&M-GMS PCO Other,PRC DELEGATED CO-COMMISSIONING,HAROLD STREET MEDICAL CENTRE,26132098,138.12 
Department of Health,NHS Sheffield CCG,28/02/2019,C&M-GMS Prem Notional Rent,PRC DELEGATED CO-COMMISSIONING,HAROLD STREET MEDICAL CENTRE,26132098,"4,675.00 "
Department of Health,NHS Sheffield CCG,28/02/2019,C&M-GMS QOF Aspiration,PRC DELEGATED CO-COMMISSIONING,HAROLD STREET MEDICAL CENTRE,26132098,"2,464.80 "
Department of Health,NHS Sheffield CCG,28/02/2019,C&M-GMS Cost of Drugs -Prescribing,LOCAL ENHANCED SERVICES,HEALTH CARE SURGERY,26121156,673.63 
Department of Health,NHS Sheffield CCG,28/02/2019,C&M-GMS DES Minor Surgery,PRC DELEGATED CO-COMMISSIONING,HEALTH CARE SURGERY,26121156,200.00 
Department of Health,NHS Sheffield CCG,28/02/2019,C&M-GMS Global Sum,PRC DELEGATED CO-COMMISSIONING,HEALTH CARE SURGERY,26121156,"38,345.60 "
Department of Health,NHS Sheffield CCG,28/02/2019,C&M-GMS MPIG Correction Factor,PRC DELEGATED CO-COMMISSIONING,HEALTH CARE SURGERY,26121156,780.02 
Department of Health,NHS Sheffield CCG,28/02/2019,C&M-GMS Prem Notional Rent,PRC DELEGATED CO-COMMISSIONING,HEALTH CARE SURGERY,26121156,"3,862.50 "
Department of Health,NHS Sheffield CCG,28/02/2019,C&M-GMS Prem Rates,PRC DELEGATED CO-COMMISSIONING,HEALTH CARE SURGERY,26121156,574.00 
Department of Health,NHS Sheffield CCG,28/02/2019,C&M-GMS Prof Fees Prescribing,PRC DELEGATED CO-COMMISSIONING,HEALTH CARE SURGERY,26121156,190.18 
Department of Health,NHS Sheffield CCG,28/02/2019,C&M-GMS QOF Aspiration,PRC DELEGATED CO-COMMISSIONING,HEALTH CARE SURGERY,26121156,"3,944.28 "
Department of Health,NHS Sheffield CCG,28/02/2019,C&M-GMS Cost of Drugs -Prescribing,LOCAL ENHANCED SERVICES,HEELEY GREEN SURGERY,26121152,"1,391.26 "
Department of Health,NHS Sheffield CCG,28/02/2019,C&M-GMS Global Sum,PRC DELEGATED CO-COMMISSIONING,HEELEY GREEN SURGERY,26121152,"42,112.49 "
Department of Health,NHS Sheffield CCG,28/02/2019,C&M-GMS MPIG Correction Factor,PRC DELEGATED CO-COMMISSIONING,HEELEY GREEN SURGERY,26121152,376.20 
Department of Health,NHS Sheffield CCG,28/02/2019,C&M-GMS Prem Notional Rent,PRC DELEGATED CO-COMMISSIONING,HEELEY GREEN SURGERY,26121152,"3,254.17 "
Department of Health,NHS Sheffield CCG,28/02/2019,C&M-GMS Prof Fees Prescribing,PRC DELEGATED CO-COMMISSIONING,HEELEY GREEN SURGERY,26121152,310.97 
Department of Health,NHS Sheffield CCG,28/02/2019,C&M-GMS QOF Aspiration,PRC DELEGATED CO-COMMISSIONING,HEELEY GREEN SURGERY,26121152,"4,672.20 "
Department of Health,NHS Sheffield CCG,28/02/2019,C&M-GMS Cost of Drugs -Prescribing,LOCAL ENHANCED SERVICES,HOLLIES MEDICAL CENTRE,26121154,"1,726.98 "
Department of Health,NHS Sheffield CCG,28/02/2019,C&M-GMS DES Learn Dsblty Hlth Chk,PRC DELEGATED CO-COMMISSIONING,HOLLIES MEDICAL CENTRE,26121154,"1,400.00 "
Department of Health,NHS Sheffield CCG,28/02/2019,C&M-GMS DES Minor Surgery,PRC DELEGATED CO-COMMISSIONING,HOLLIES MEDICAL CENTRE,26121154,655.00 
Department of Health,NHS Sheffield CCG,28/02/2019,C&M-GMS Global Sum,PRC DELEGATED CO-COMMISSIONING,HOLLIES MEDICAL CENTRE,26121154,"59,092.58 "
Department of Health,NHS Sheffield CCG,28/02/2019,C&M-GMS MPIG Correction Factor,PRC DELEGATED CO-COMMISSIONING,HOLLIES MEDICAL CENTRE,26121154,"1,452.73 "
Department of Health,NHS Sheffield CCG,28/02/2019,C&M-GMS Prem Notional Rent,PRC DELEGATED CO-COMMISSIONING,HOLLIES MEDICAL CENTRE,26121154,"3,229.17 "
Department of Health,NHS Sheffield CCG,28/02/2019,C&M-GMS Prof Fees Prescribing,PRC DELEGATED CO-COMMISSIONING,HOLLIES MEDICAL CENTRE,26121154,385.50 
Department of Health,NHS Sheffield CCG,28/02/2019,C&M-GMS QOF Aspiration,PRC DELEGATED CO-COMMISSIONING,HOLLIES MEDICAL CENTRE,26121154,"6,440.45 "
Department of Health,NHS Sheffield CCG,28/02/2019,Cont Care-Physical Disab (<65),CHC ADULT FULLY FUNDED,HORIZON CARE HOMES LTD,25943812,"81,850.57 "
Department of Health,NHS Sheffield CCG,28/02/2019,Cont Care-Physical Disab (<65),CHC ADULT FULLY FUNDED,HORIZON CARE HOMES LTD,25943909,"59,982.02 "
Department of Health,NHS Sheffield CCG,28/02/2019,Cont Care-Physical Disab (<65),CHC ADULT FULLY FUNDED,HORIZON CARE HOMES LTD,25943955,"43,245.88 "
Department of Health,NHS Sheffield CCG,28/02/2019,Cont Care-Physical Disab (65+),CHC ADULT FULLY FUNDED,HORIZON CARE HOMES LTD,26092317,"48,000.00 "
Department of Health,NHS Sheffield CCG,28/02/2019,C&M-PMS Contract Value,PRC DELEGATED CO-COMMISSIONING,JAUNTY SPRINGS HEALTH CENTRE,25926745,"30,588.90 "
Department of Health,NHS Sheffield CCG,28/02/2019,C&M-PMS DES Learn Dsblty Hlth Chk,PRC DELEGATED CO-COMMISSIONING,JAUNTY SPRINGS HEALTH CENTRE,25926745,980.00 
Department of Health,NHS Sheffield CCG,28/02/2019,C&M-PMS DES Minor Surgery,PRC DELEGATED CO-COMMISSIONING,JAUNTY SPRINGS HEALTH CENTRE,25926745,280.00 
Department of Health,NHS Sheffield CCG,28/02/2019,C&M-PMS PCO Other,PRC DELEGATED CO-COMMISSIONING,JAUNTY SPRINGS HEALTH CENTRE,25926745,284.88 
Department of Health,NHS Sheffield CCG,28/02/2019,C&M-PMS Prem Notional Rent,PRC DELEGATED CO-COMMISSIONING,JAUNTY SPRINGS HEALTH CENTRE,25926745,"3,208.33 "
Department of Health,NHS Sheffield CCG,28/02/2019,C&M-PMS QOF Aspiration,PRC DELEGATED CO-COMMISSIONING,JAUNTY SPRINGS HEALTH CENTRE,25926745,"3,861.25 "
Department of Health,NHS Sheffield CCG,28/02/2019,IT(Owned)-Cost-Addns-IT,ADDITIONS - IT OWNED COST ,KIER BUSINESS SERVICES LTD,25863362,"26,036.86 "
Department of Health,NHS Sheffield CCG,28/02/2019,C&M-GMS IT Comm Servs -GP Practices,PRIMARY CARE IT,KIER BUSINESS SERVICES LTD,25885917,"103,393.20 "
Department of Health,NHS Sheffield CCG,28/02/2019,FM Computer Contracts,BUSINESS INFORMATICS,KIER BUSINESS SERVICES LTD,25885917,"36,933.60 "
Department of Health,NHS Sheffield CCG,28/02/2019,C&M-GMS LES Translation Fees,INTERPRETING SERVICES,LANGUAGELINE SOLUTIONS,26024205,"32,714.40 "
Department of Health,NHS Sheffield CCG,28/02/2019,C&M-GMS LES Translation Fees,INTERPRETING SERVICES,LANGUAGELINE SOLUTIONS,26024210,"43,661.46 "
Department of Health,NHS Sheffield CCG,28/02/2019,Hcare Srv Rec NHS Trust-Contract Baseline,ACUTE COMMISSIONING,LEEDS TEACHING HOSPITALS NHS TRUST,25885892,"52,320.25 "
Department of Health,NHS Sheffield CCG,28/02/2019,Hcare Srv Rec NHS Trust-Contract Baseline,ACUTE COMMISSIONING,LEEDS TEACHING HOSPITALS NHS TRUST,25943074,"44,759.00 "
Department of Health,NHS Sheffield CCG,28/02/2019,Cont Care-Physical Disab (<65),CHC ADULT FULLY FUNDED,LONGLEY HEALTH CARE LTD,25944010,"87,584.51 "
Department of Health,NHS Sheffield CCG,28/02/2019,Cont Care-Physical Disab (<65),CHC ADULT FULLY FUNDED,LOXLEY HEALTH CARE LTD,25944017,"65,671.53 "
Department of Health,NHS Sheffield CCG,28/02/2019,C&M-PMS Contract Value,PRC DELEGATED CO-COMMISSIONING,MANCHESTER ROAD SURGERY SHEFFIELD,25926749,"32,546.58 "
Department of Health,NHS Sheffield CCG,28/02/2019,C&M-PMS DES Minor Surgery,PRC DELEGATED CO-COMMISSIONING,MANCHESTER ROAD SURGERY SHEFFIELD,25926749,735.00 
Department of Health,NHS Sheffield CCG,28/02/2019,C&M-PMS Out of Hours Opt Outs,PRC DELEGATED CO-COMMISSIONING,MANCHESTER ROAD SURGERY SHEFFIELD,25926749,24.30 
Department of Health,NHS Sheffield CCG,28/02/2019,C&M-PMS Prem Cost Rent,PRC DELEGATED CO-COMMISSIONING,MANCHESTER ROAD SURGERY SHEFFIELD,25926749,"3,472.17 "
Department of Health,NHS Sheffield CCG,28/02/2019,C&M-PMS Prem Notional Rent,PRC DELEGATED CO-COMMISSIONING,MANCHESTER ROAD SURGERY SHEFFIELD,25926749,442.92 
Department of Health,NHS Sheffield CCG,28/02/2019,C&M-PMS QOF Aspiration,PRC DELEGATED CO-COMMISSIONING,MANCHESTER ROAD SURGERY SHEFFIELD,25926749,"4,036.85 "
Department of Health,NHS Sheffield CCG,28/02/2019,C&M-PMS Contract Value,PRC DELEGATED CO-COMMISSIONING,MANOR & PARK GROUP PRACTICE,25933354,"76,837.91 "
Department of Health,NHS Sheffield CCG,28/02/2019,C&M-PMS DES Minor Surgery,PRC DELEGATED CO-COMMISSIONING,MANOR & PARK GROUP PRACTICE,25933354,480.00 
Department of Health,NHS Sheffield CCG,28/02/2019,C&M-PMS Out of Hours Opt Outs,PRC DELEGATED CO-COMMISSIONING,MANOR & PARK GROUP PRACTICE,25933354,156.77 
Department of Health,NHS Sheffield CCG,28/02/2019,C&M-PMS PCO Locum Adop/Pat/Mat,PRC DELEGATED CO-COMMISSIONING,MANOR & PARK GROUP PRACTICE,25933354,"22,778.54 "
Department of Health,NHS Sheffield CCG,28/02/2019,C&M-PMS PCO Seniority,PRC DELEGATED CO-COMMISSIONING,MANOR & PARK GROUP PRACTICE,25933354,"2,832.70 "
Department of Health,NHS Sheffield CCG,28/02/2019,C&M-PMS Prem Notional Rent,PRC DELEGATED CO-COMMISSIONING,MANOR & PARK GROUP PRACTICE,25933354,"9,050.00 "
Department of Health,NHS Sheffield CCG,28/02/2019,C&M-PMS Prem Rates,PRC DELEGATED CO-COMMISSIONING,MANOR & PARK GROUP PRACTICE,25933354,"5,165.63 "
Department of Health,NHS Sheffield CCG,28/02/2019,C&M-PMS QOF Aspiration,PRC DELEGATED CO-COMMISSIONING,MANOR & PARK GROUP PRACTICE,25933354,"7,862.89 "
Department of Health,NHS Sheffield CCG,28/02/2019,C&M-GMS Cost of Drugs -Prescribing,LOCAL ENHANCED SERVICES,MATHEWS PRACTICE,26121163,165.65 
Department of Health,NHS Sheffield CCG,28/02/2019,C&M-GMS DES Minor Surgery,PRC DELEGATED CO-COMMISSIONING,MATHEWS PRACTICE,26121163,"2,185.00 "
Department of Health,NHS Sheffield CCG,28/02/2019,C&M-GMS Global Sum,PRC DELEGATED CO-COMMISSIONING,MATHEWS PRACTICE,26121163,"61,772.03 "
Department of Health,NHS Sheffield CCG,28/02/2019,C&M-GMS MPIG Correction Factor,PRC DELEGATED CO-COMMISSIONING,MATHEWS PRACTICE,26121163,598.96 
Department of Health,NHS Sheffield CCG,28/02/2019,C&M-GMS PCO Locum Adop/Pat/Mat,PRC DELEGATED CO-COMMISSIONING,MATHEWS PRACTICE,26121163,"37,309.33 "
Department of Health,NHS Sheffield CCG,28/02/2019,C&M-GMS Prem Notional Rent,PRC DELEGATED CO-COMMISSIONING,MATHEWS PRACTICE,26121163,"8,660.42 "
Department of Health,NHS Sheffield CCG,28/02/2019,C&M-GMS Prof Fees Prescribing,PRC DELEGATED CO-COMMISSIONING,MATHEWS PRACTICE,26121163,105.37 
Department of Health,NHS Sheffield CCG,28/02/2019,C&M-GMS QOF Aspiration,PRC DELEGATED CO-COMMISSIONING,MATHEWS PRACTICE,26121163,"7,748.47 "
Department of Health,NHS Sheffield CCG,28/02/2019,C&M-PMS Contract Value,PRC DELEGATED CO-COMMISSIONING,MEADOWHEAD GROUP PRACTICE,25926747,"77,318.95 "
Department of Health,NHS Sheffield CCG,28/02/2019,C&M-PMS DES Learn Dsblty Hlth Chk,PRC DELEGATED CO-COMMISSIONING,MEADOWHEAD GROUP PRACTICE,25926747,"3,920.00 "
Department of Health,NHS Sheffield CCG,28/02/2019,C&M-PMS DES Minor Surgery,PRC DELEGATED CO-COMMISSIONING,MEADOWHEAD GROUP PRACTICE,25926747,"1,185.00 "
Department of Health,NHS Sheffield CCG,28/02/2019,C&M-PMS Out of Hours Opt Outs,PRC DELEGATED CO-COMMISSIONING,MEADOWHEAD GROUP PRACTICE,25926747,222.94 
Department of Health,NHS Sheffield CCG,28/02/2019,C&M-PMS PCO Locum Adop/Pat/Mat,PRC DELEGATED CO-COMMISSIONING,MEADOWHEAD GROUP PRACTICE,25926747,"17,201.88 "
Department of Health,NHS Sheffield CCG,28/02/2019,C&M-PMS Prem Cost Rent,PRC DELEGATED CO-COMMISSIONING,MEADOWHEAD GROUP PRACTICE,25926747,"3,647.42 "
Department of Health,NHS Sheffield CCG,28/02/2019,C&M-PMS Prem Notional Rent,PRC DELEGATED CO-COMMISSIONING,MEADOWHEAD GROUP PRACTICE,25926747,"3,358.33 "
Department of Health,NHS Sheffield CCG,28/02/2019,C&M-PMS Prem Water Rates,PRC DELEGATED CO-COMMISSIONING,MEADOWHEAD GROUP PRACTICE,25926747,233.47 
Department of Health,NHS Sheffield CCG,28/02/2019,C&M-PMS QOF Aspiration,PRC DELEGATED CO-COMMISSIONING,MEADOWHEAD GROUP PRACTICE,25926747,"9,134.83 "
Department of Health,NHS Sheffield CCG,28/02/2019,C&M-GMS Cost of Drugs -Prescribing,LOCAL ENHANCED SERVICES,MEDICAL CENTRE CRYSTAL PEAKS,26121159,"2,504.04 "
Department of Health,NHS Sheffield CCG,28/02/2019,C&M-GMS DES Learn Dsblty Hlth Chk,PRC DELEGATED CO-COMMISSIONING,MEDICAL CENTRE CRYSTAL PEAKS,26121159,840.00 
Department of Health,NHS Sheffield CCG,28/02/2019,C&M-GMS DES Minor Surgery,PRC DELEGATED CO-COMMISSIONING,MEDICAL CENTRE CRYSTAL PEAKS,26121159,"3,070.00 "
Department of Health,NHS Sheffield CCG,28/02/2019,C&M-GMS Global Sum,PRC DELEGATED CO-COMMISSIONING,MEDICAL CENTRE CRYSTAL PEAKS,26121159,"45,743.63 "
Department of Health,NHS Sheffield CCG,28/02/2019,C&M-GMS MPIG Correction Factor,PRC DELEGATED CO-COMMISSIONING,MEDICAL CENTRE CRYSTAL PEAKS,26121159,"1,131.34 "
Department of Health,NHS Sheffield CCG,28/02/2019,C&M-GMS PCO Locum Adop/Pat/Mat,PRC DELEGATED CO-COMMISSIONING,MEDICAL CENTRE CRYSTAL PEAKS,26121159,412.92 
Department of Health,NHS Sheffield CCG,28/02/2019,C&M-GMS PCO Other,PRC DELEGATED CO-COMMISSIONING,MEDICAL CENTRE CRYSTAL PEAKS,26121159,474.64 
Department of Health,NHS Sheffield CCG,28/02/2019,C&M-GMS Prem Notional Rent,PRC DELEGATED CO-COMMISSIONING,MEDICAL CENTRE CRYSTAL PEAKS,26121159,270.00 
Department of Health,NHS Sheffield CCG,28/02/2019,C&M-GMS Prof Fees Prescribing,PRC DELEGATED CO-COMMISSIONING,MEDICAL CENTRE CRYSTAL PEAKS,26121159,701.61 
Department of Health,NHS Sheffield CCG,28/02/2019,C&M-GMS QOF Aspiration,PRC DELEGATED CO-COMMISSIONING,MEDICAL CENTRE CRYSTAL PEAKS,26121159,"6,363.66 "
Department of Health,NHS Sheffield CCG,28/02/2019,C&M-GMS Cost of Drugs -Prescribing,LOCAL ENHANCED SERVICES,MILL ROAD SURGERY SHEFFIELD,26121166,"1,208.18 "
Department of Health,NHS Sheffield CCG,28/02/2019,C&M-GMS DES Learn Dsblty Hlth Chk,PRC DELEGATED CO-COMMISSIONING,MILL ROAD SURGERY SHEFFIELD,26121166,840.00 
Department of Health,NHS Sheffield CCG,28/02/2019,C&M-GMS DES Minor Surgery,PRC DELEGATED CO-COMMISSIONING,MILL ROAD SURGERY SHEFFIELD,26121166,945.00 
Department of Health,NHS Sheffield CCG,28/02/2019,C&M-GMS GP Statutory Levy,PRC DELEGATED CO-COMMISSIONING,MILL ROAD SURGERY SHEFFIELD,26121166,119.76 
Department of Health,NHS Sheffield CCG,28/02/2019,C&M-GMS Global Sum,PRC DELEGATED CO-COMMISSIONING,MILL ROAD SURGERY SHEFFIELD,26121166,"40,535.85 "
Department of Health,NHS Sheffield CCG,28/02/2019,C&M-GMS MPIG Correction Factor,PRC DELEGATED CO-COMMISSIONING,MILL ROAD SURGERY SHEFFIELD,26121166,122.04 
Department of Health,NHS Sheffield CCG,28/02/2019,C&M-GMS PCO Other,PRC DELEGATED CO-COMMISSIONING,MILL ROAD SURGERY SHEFFIELD,26121166,389.48 
Department of Health,NHS Sheffield CCG,28/02/2019,C&M-GMS Prem Notional Rent,PRC DELEGATED CO-COMMISSIONING,MILL ROAD SURGERY SHEFFIELD,26121166,"4,593.33 "
Department of Health,NHS Sheffield CCG,28/02/2019,C&M-GMS Prof Fees Prescribing,PRC DELEGATED CO-COMMISSIONING,MILL ROAD SURGERY SHEFFIELD,26121166,185.04 
Department of Health,NHS Sheffield CCG,28/02/2019,C&M-GMS QOF Aspiration,PRC DELEGATED CO-COMMISSIONING,MILL ROAD SURGERY SHEFFIELD,26121166,"4,960.33 "
Department of Health,NHS Sheffield CCG,28/02/2019,C&M-GMS Voluntary Levy,PRC DELEGATED CO-COMMISSIONING,MILL ROAD SURGERY SHEFFIELD,26121166,19.96 
Department of Health,NHS Sheffield CCG,28/02/2019,Clinical&Medical-Independent Sector,Mental Health Services - S117 Mental Health,MOORVILLE RESIDENTIAL,25944025,"7,338.08 "
Department of Health,NHS Sheffield CCG,28/02/2019,Cont Care-Learning Disab(<65),CHC ADULT FULLY FUNDED,MOORVILLE RESIDENTIAL,25944025,"18,069.08 "
Department of Health,NHS Sheffield CCG,28/02/2019,Cont Care-Learning Disab(<65),CHC ADULT JOINT FUNDED,MOORVILLE RESIDENTIAL,25944025,"1,095.36 "
Department of Health,NHS Sheffield CCG,28/02/2019,Cont Care-Mental Health (<65),CHC ADULT JOINT FUNDED,MOORVILLE RESIDENTIAL,25944025,444.00 
Department of Health,NHS Sheffield CCG,28/02/2019,C&M-PMS Contract Value,PRC DELEGATED CO-COMMISSIONING,MOSBOROUGH HEALTH CENTRE,25926751,"48,445.32 "
Department of Health,NHS Sheffield CCG,28/02/2019,C&M-PMS DES Minor Surgery,PRC DELEGATED CO-COMMISSIONING,MOSBOROUGH HEALTH CENTRE,25926751,"1,400.00 "
Department of Health,NHS Sheffield CCG,28/02/2019,C&M-PMS PCO Other,PRC DELEGATED CO-COMMISSIONING,MOSBOROUGH HEALTH CENTRE,25926751,471.12 
Department of Health,NHS Sheffield CCG,28/02/2019,C&M-PMS Prem Notional Rent,PRC DELEGATED CO-COMMISSIONING,MOSBOROUGH HEALTH CENTRE,25926751,"4,091.67 "
Department of Health,NHS Sheffield CCG,28/02/2019,C&M-PMS QOF Aspiration,PRC DELEGATED CO-COMMISSIONING,MOSBOROUGH HEALTH CENTRE,25926751,"5,763.82 "
Department of Health,NHS Sheffield CCG,28/02/2019,Cont Care- Prior Year Payments,CHC ADULT FULLY FUNDED,NATIONAL AUTISTIC SOCIETY,25838254,"(30,650.40)"
Department of Health,NHS Sheffield CCG,28/02/2019,Other Gen Supplies & Srv,CLINICAL LEADS,NDVA,25973813,"37,250.00 "
Department of Health,NHS Sheffield CCG,28/02/2019,C&M-PMS Contract Value,PRC DELEGATED CO-COMMISSIONING,NETHERGREEN SURGERY,25926753,"63,373.08 "
Department of Health,NHS Sheffield CCG,28/02/2019,C&M-PMS DES Learn Dsblty Hlth Chk,PRC DELEGATED CO-COMMISSIONING,NETHERGREEN SURGERY,25926753,280.00 
Department of Health,NHS Sheffield CCG,28/02/2019,C&M-PMS DES Minor Surgery,PRC DELEGATED CO-COMMISSIONING,NETHERGREEN SURGERY,25926753,"1,980.00 "
Department of Health,NHS Sheffield CCG,28/02/2019,C&M-PMS Out of Hours Opt Outs,PRC DELEGATED CO-COMMISSIONING,NETHERGREEN SURGERY,25926753,3.68 
Department of Health,NHS Sheffield CCG,28/02/2019,C&M-PMS Prem Cost Rent,PRC DELEGATED CO-COMMISSIONING,NETHERGREEN SURGERY,25926753,"5,057.33 "
Department of Health,NHS Sheffield CCG,28/02/2019,C&M-PMS Prem Water Rates,PRC DELEGATED CO-COMMISSIONING,NETHERGREEN SURGERY,25926753,184.93 
Department of Health,NHS Sheffield CCG,28/02/2019,C&M-PMS QOF Aspiration,PRC DELEGATED CO-COMMISSIONING,NETHERGREEN SURGERY,25926753,"6,267.38 "
Department of Health,NHS Sheffield CCG,28/02/2019,Other Gen Supplies & Srv,COMMISSIONING,NHS GREATER HUDDERSFIELD CCG,26202057,"30,035.00 "
Department of Health,NHS Sheffield CCG,28/02/2019,Charges from CSU,BUSINESS INFORMATICS,NHS NORTH OF ENGLAND CSU,26125751,"30,083.00 "
Department of Health,NHS Sheffield CCG,28/02/2019,Rent,CONTINUING HEALTHCARE ASSESSMENT & SUPPORT,NHS PROPERTY SERVICES LTD,25838234,"20,417.91 "
Department of Health,NHS Sheffield CCG,28/02/2019,Rent,ESTATES AND FACILITIES,NHS PROPERTY SERVICES LTD,25838234,"54,099.55 "
Department of Health,NHS Sheffield CCG,28/02/2019,Healthcare Srv Rec CCG,CLINICAL LEADS,NHS ROTHERHAM CCG,26073884,"25,250.00 "
Department of Health,NHS Sheffield CCG,28/02/2019,Seconded-Basic Sal-Staff fm oth org,BEREAVEMENT SERVICE,NHS ROTHERHAM CCG,26106183,"27,469.25 "
Department of Health,NHS Sheffield CCG,28/02/2019,Seconded-Employer's NHI Costs,BEREAVEMENT SERVICE,NHS ROTHERHAM CCG,26106183,"3,565.66 "
Department of Health,NHS Sheffield CCG,28/02/2019,Other Gen Supplies & Srv,CLINICAL LEADS,NHS ROTHERHAM CCG,26125671,"27,000.00 "
Department of Health,NHS Sheffield CCG,28/02/2019,Cont Care-CCG-Adult 100% Funded,ADULT JOINT FUNDED CONTINUING CARE,NHS SOUTH SEFTON CCG,26201985,"126,985.00 "
Department of Health,NHS Sheffield CCG,28/02/2019,Cont Care-CCG-Adult 100% Funded,ADULT JOINT FUNDED CONTINUING CARE,NHS SOUTH SEFTON CCG,26202102,"(126,985.00)"
Department of Health,NHS Sheffield CCG,28/02/2019,C&M-GMS Cost of Drugs -Prescribing,LOCAL ENHANCED SERVICES,NORFOLK PARK HEALTH CENTRE,26121171,"1,301.54 "
Department of Health,NHS Sheffield CCG,28/02/2019,C&M-GMS DES Minor Surgery,PRC DELEGATED CO-COMMISSIONING,NORFOLK PARK HEALTH CENTRE,26121171,840.00 
Department of Health,NHS Sheffield CCG,28/02/2019,C&M-GMS Global Sum,PRC DELEGATED CO-COMMISSIONING,NORFOLK PARK HEALTH CENTRE,26121171,"37,609.51 "
Department of Health,NHS Sheffield CCG,28/02/2019,C&M-GMS MPIG Correction Factor,PRC DELEGATED CO-COMMISSIONING,NORFOLK PARK HEALTH CENTRE,26121171,924.61 
Department of Health,NHS Sheffield CCG,28/02/2019,C&M-GMS Prem Healthcentre Rent,PRC DELEGATED CO-COMMISSIONING,NORFOLK PARK HEALTH CENTRE,26121171,"24,044.86 "
Department of Health,NHS Sheffield CCG,28/02/2019,C&M-GMS Prof Fees Prescribing,PRC DELEGATED CO-COMMISSIONING,NORFOLK PARK HEALTH CENTRE,26121171,259.57 
Department of Health,NHS Sheffield CCG,28/02/2019,C&M-GMS QOF Aspiration,PRC DELEGATED CO-COMMISSIONING,NORFOLK PARK HEALTH CENTRE,26121171,"3,810.65 "
Department of Health,NHS Sheffield CCG,28/02/2019,C&M-GMS Cost of Drugs -Prescribing,LOCAL ENHANCED SERVICES,NORWOOD MEDICAL CENTRE SHEFFIELD,26121174,"1,355.12 "
Department of Health,NHS Sheffield CCG,28/02/2019,C&M-GMS DES Learn Dsblty Hlth Chk,PRC DELEGATED CO-COMMISSIONING,NORWOOD MEDICAL CENTRE SHEFFIELD,26121174,840.00 
Department of Health,NHS Sheffield CCG,28/02/2019,C&M-GMS DES Minor Surgery,PRC DELEGATED CO-COMMISSIONING,NORWOOD MEDICAL CENTRE SHEFFIELD,26121174,"3,200.00 "
Department of Health,NHS Sheffield CCG,28/02/2019,C&M-GMS Global Sum,PRC DELEGATED CO-COMMISSIONING,NORWOOD MEDICAL CENTRE SHEFFIELD,26121174,"64,358.66 "
Department of Health,NHS Sheffield CCG,28/02/2019,C&M-GMS PCO Other,PRC DELEGATED CO-COMMISSIONING,NORWOOD MEDICAL CENTRE SHEFFIELD,26121174,559.64 
Department of Health,NHS Sheffield CCG,28/02/2019,C&M-GMS Prem Notional Rent,PRC DELEGATED CO-COMMISSIONING,NORWOOD MEDICAL CENTRE SHEFFIELD,26121174,"5,187.50 "
Department of Health,NHS Sheffield CCG,28/02/2019,C&M-GMS Prem Rates,PRC DELEGATED CO-COMMISSIONING,NORWOOD MEDICAL CENTRE SHEFFIELD,26121174,"13,275.17 "
Department of Health,NHS Sheffield CCG,28/02/2019,C&M-GMS Prem Water Rates,PRC DELEGATED CO-COMMISSIONING,NORWOOD MEDICAL CENTRE SHEFFIELD,26121174,254.67 
Department of Health,NHS Sheffield CCG,28/02/2019,C&M-GMS Prof Fees Prescribing,PRC DELEGATED CO-COMMISSIONING,NORWOOD MEDICAL CENTRE SHEFFIELD,26121174,372.65 
Department of Health,NHS Sheffield CCG,28/02/2019,C&M-GMS QOF Aspiration,PRC DELEGATED CO-COMMISSIONING,NORWOOD MEDICAL CENTRE SHEFFIELD,26121174,"8,350.37 "
Department of Health,NHS Sheffield CCG,28/02/2019,Hcare Srv Rec NHS Trust-Contract Baseline,ACUTE COMMISSIONING,NOTTINGHAM UNIVERSITY HOSPITALS NHS TRUST,25984155,"28,040.00 "
Department of Health,NHS Sheffield CCG,28/02/2019,Clinical&Medical-Independent Sector,ACUTE COMMISSIONING,ONEHEALTH GROUP,25944127,"74,162.00 "
Department of Health,NHS Sheffield CCG,28/02/2019,C&M-GMS Cost of Drugs -Dispensing,LOCAL ENHANCED SERVICES,OUGHTIBRIDGE SURGERY,26121176,"(15,926.74)"
Department of Health,NHS Sheffield CCG,28/02/2019,C&M-GMS GP Statutory Levy,PRC DELEGATED CO-COMMISSIONING,OUGHTIBRIDGE SURGERY,26121176,(174.84)
Department of Health,NHS Sheffield CCG,28/02/2019,C&M-GMS PrscChrgsCll&RmttdbyGPCntra,PRC DELEGATED CO-COMMISSIONING,OUGHTIBRIDGE SURGERY,26121176,(607.20)
Department of Health,NHS Sheffield CCG,28/02/2019,C&M-GMS Voluntary Levy,PRC DELEGATED CO-COMMISSIONING,OUGHTIBRIDGE SURGERY,26121176,(29.14)
Department of Health,NHS Sheffield CCG,28/02/2019,C&M-GMS Cost of Drugs -Dispensing,LOCAL ENHANCED SERVICES,OUGHTIBRIDGE SURGERY,26121177,"29,436.78 "
Department of Health,NHS Sheffield CCG,28/02/2019,C&M-GMS DES Minor Surgery,PRC DELEGATED CO-COMMISSIONING,OUGHTIBRIDGE SURGERY,26121177,520.00 
Department of Health,NHS Sheffield CCG,28/02/2019,C&M-GMS Global Sum,PRC DELEGATED CO-COMMISSIONING,OUGHTIBRIDGE SURGERY,26121177,"42,801.25 "
Department of Health,NHS Sheffield CCG,28/02/2019,C&M-GMS PCO Locum Adop/Pat/Mat,PRC DELEGATED CO-COMMISSIONING,OUGHTIBRIDGE SURGERY,26121177,"3,188.43 "
Department of Health,NHS Sheffield CCG,28/02/2019,C&M-GMS Prem Notional Rent,PRC DELEGATED CO-COMMISSIONING,OUGHTIBRIDGE SURGERY,26121177,"3,957.33 "
Department of Health,NHS Sheffield CCG,28/02/2019,C&M-GMS Prem Water Rates,PRC DELEGATED CO-COMMISSIONING,OUGHTIBRIDGE SURGERY,26121177,181.32 
Department of Health,NHS Sheffield CCG,28/02/2019,C&M-GMS Prof Fees Dispensing,PRC DELEGATED CO-COMMISSIONING,OUGHTIBRIDGE SURGERY,26121177,"5,047.04 "
Department of Health,NHS Sheffield CCG,28/02/2019,C&M-GMS PrscrptnChrgsColl&RmttdbyGP,LOCAL ENHANCED SERVICES,OUGHTIBRIDGE SURGERY,26121177,607.20 
Department of Health,NHS Sheffield CCG,28/02/2019,C&M-GMS QOF Aspiration,PRC DELEGATED CO-COMMISSIONING,OUGHTIBRIDGE SURGERY,26121177,"4,454.94 "
Department of Health,NHS Sheffield CCG,28/02/2019,C&M-PMS Contract Value,PRC DELEGATED CO-COMMISSIONING,OWLTHORPE MEDICAL CENTRE,25926755,"33,565.48 "
Department of Health,NHS Sheffield CCG,28/02/2019,C&M-PMS DES Extended Hours Access,PRC DELEGATED CO-COMMISSIONING,OWLTHORPE MEDICAL CENTRE,25926755,"4,353.86 "
Department of Health,NHS Sheffield CCG,28/02/2019,C&M-PMS Out of Hours Opt Outs,PRC DELEGATED CO-COMMISSIONING,OWLTHORPE MEDICAL CENTRE,25926755,41.44 
Department of Health,NHS Sheffield CCG,28/02/2019,C&M-PMS Prem Actual Rent,PRC DELEGATED CO-COMMISSIONING,OWLTHORPE MEDICAL CENTRE,25926755,"7,539.58 "
Department of Health,NHS Sheffield CCG,28/02/2019,C&M-PMS QOF Aspiration,PRC DELEGATED CO-COMMISSIONING,OWLTHORPE MEDICAL CENTRE,25926755,"4,022.05 "
Department of Health,NHS Sheffield CCG,28/02/2019,C&M-PMS Contract Value,PRC DELEGATED CO-COMMISSIONING,PAGE HALL MEDICAL CENTRE,25926757,"57,376.24 "
Department of Health,NHS Sheffield CCG,28/02/2019,C&M-PMS DES Learn Dsblty Hlth Chk,PRC DELEGATED CO-COMMISSIONING,PAGE HALL MEDICAL CENTRE,25926757,"1,960.00 "
Department of Health,NHS Sheffield CCG,28/02/2019,C&M-PMS DES Minor Surgery,PRC DELEGATED CO-COMMISSIONING,PAGE HALL MEDICAL CENTRE,25926757,320.00 
Department of Health,NHS Sheffield CCG,28/02/2019,C&M-PMS Out of Hours Opt Outs,PRC DELEGATED CO-COMMISSIONING,PAGE HALL MEDICAL CENTRE,25926757,68.70 
Department of Health,NHS Sheffield CCG,28/02/2019,C&M-PMS Prem Notional Rent,PRC DELEGATED CO-COMMISSIONING,PAGE HALL MEDICAL CENTRE,25926757,"4,833.33 "
Department of Health,NHS Sheffield CCG,28/02/2019,C&M-PMS QOF Aspiration,PRC DELEGATED CO-COMMISSIONING,PAGE HALL MEDICAL CENTRE,25926757,"4,906.36 "
Department of Health,NHS Sheffield CCG,28/02/2019,C&M-PMS Contract Value,PRC DELEGATED CO-COMMISSIONING,PITSMOOR SURGERY,25926759,"77,650.22 "
Department of Health,NHS Sheffield CCG,28/02/2019,C&M-PMS DES Learn Dsblty Hlth Chk,PRC DELEGATED CO-COMMISSIONING,PITSMOOR SURGERY,25926759,"1,540.00 "
Department of Health,NHS Sheffield CCG,28/02/2019,C&M-PMS DES Minor Surgery,PRC DELEGATED CO-COMMISSIONING,PITSMOOR SURGERY,25926759,"2,240.00 "
Department of Health,NHS Sheffield CCG,28/02/2019,C&M-PMS Out of Hours Opt Outs,PRC DELEGATED CO-COMMISSIONING,PITSMOOR SURGERY,25926759,143.00 
Department of Health,NHS Sheffield CCG,28/02/2019,C&M-PMS PCO Locum Adop/Pat/Mat,PRC DELEGATED CO-COMMISSIONING,PITSMOOR SURGERY,25926759,"7,166.68 "
Department of Health,NHS Sheffield CCG,28/02/2019,C&M-PMS Prem Notional Rent,PRC DELEGATED CO-COMMISSIONING,PITSMOOR SURGERY,25926759,"9,650.00 "
Department of Health,NHS Sheffield CCG,28/02/2019,C&M-PMS QOF Aspiration,PRC DELEGATED CO-COMMISSIONING,PITSMOOR SURGERY,25926759,"7,079.26 "
Department of Health,NHS Sheffield CCG,28/02/2019,C&M-APMS LES Basket of Procedures,LOCAL ENHANCED SERVICES,PITSMOOR SURGERY,26011182,"65,414.00 "
Department of Health,NHS Sheffield CCG,28/02/2019,C&M-PMS Contract Value,PRC DELEGATED CO-COMMISSIONING,PORTER BROOK MEDICAL CENTRE,25926760,"(11,493.67)"
Department of Health,NHS Sheffield CCG,28/02/2019,C&M-PMS Out of Hours Opt Outs,PRC DELEGATED CO-COMMISSIONING,PORTER BROOK MEDICAL CENTRE,25926760,"(8,269.97)"
Department of Health,NHS Sheffield CCG,28/02/2019,C&M-PMS Contract Value,PRC DELEGATED CO-COMMISSIONING,PORTER BROOK MEDICAL CENTRE,25926761,"175,852.18 "
Department of Health,NHS Sheffield CCG,28/02/2019,C&M-PMS DES Learn Dsblty Hlth Chk,PRC DELEGATED CO-COMMISSIONING,PORTER BROOK MEDICAL CENTRE,25926761,280.00 
Department of Health,NHS Sheffield CCG,28/02/2019,C&M-PMS DES Minor Surgery,PRC DELEGATED CO-COMMISSIONING,PORTER BROOK MEDICAL CENTRE,25926761,"4,275.00 "
Department of Health,NHS Sheffield CCG,28/02/2019,C&M-PMS Out of Hours Opt Outs,PRC DELEGATED CO-COMMISSIONING,PORTER BROOK MEDICAL CENTRE,25926761,565.20 
Department of Health,NHS Sheffield CCG,28/02/2019,C&M-PMS PCO Other,PRC DELEGATED CO-COMMISSIONING,PORTER BROOK MEDICAL CENTRE,25926761,"1,902.48 "
Department of Health,NHS Sheffield CCG,28/02/2019,C&M-PMS Prem Actual Rent,PRC DELEGATED CO-COMMISSIONING,PORTER BROOK MEDICAL CENTRE,25926761,"1,333.33 "
Department of Health,NHS Sheffield CCG,28/02/2019,C&M-PMS Prem Notional Rent,PRC DELEGATED CO-COMMISSIONING,PORTER BROOK MEDICAL CENTRE,25926761,"9,666.67 "
Department of Health,NHS Sheffield CCG,28/02/2019,C&M-PMS Prem Rates,PRC DELEGATED CO-COMMISSIONING,PORTER BROOK MEDICAL CENTRE,25926761,766.37 
Department of Health,NHS Sheffield CCG,28/02/2019,C&M-PMS Prem Water Rates,PRC DELEGATED CO-COMMISSIONING,PORTER BROOK MEDICAL CENTRE,25926761,303.43 
Department of Health,NHS Sheffield CCG,28/02/2019,C&M-PMS QOF Aspiration,PRC DELEGATED CO-COMMISSIONING,PORTER BROOK MEDICAL CENTRE,25926761,"8,562.06 "
Department of Health,NHS Sheffield CCG,28/02/2019,Clinical&Medical-Commercial Sector,PATIENT TRANSPORT,PREMIER CARE DIRECT LTD,25813067,"112,480.55 "
Department of Health,NHS Sheffield CCG,28/02/2019,Clinical&Medical-Commercial Sector,PATIENT TRANSPORT,PREMIER CARE DIRECT LTD,26202059,"112,480.55 "
Department of Health,NHS Sheffield CCG,28/02/2019,C&M-APMS LES Basket of Procedures,LOCAL ENHANCED SERVICES,PRIMARY CARE SHEFFIELD LTD,26011287,"(33,067.00)"
Department of Health,NHS Sheffield CCG,28/02/2019,C&M-APMS LES Basket of Procedures,LOCAL ENHANCED SERVICES,PRIMARY CARE SHEFFIELD LTD,26011330,"33,067.00 "
Department of Health,NHS Sheffield CCG,28/02/2019,C&M-APMS DES Extended Hours Access,GP FORWARD VIEW,PRIMARY CARE SHEFFIELD LTD,26187293,"291,333.33 "
Department of Health,NHS Sheffield CCG,28/02/2019,C&M-OES Childrens Schemes,LOCAL ENHANCED SERVICES,PRIMARY EYECARE SERVICES LTD,26044614,"1,350.00 "
Department of Health,NHS Sheffield CCG,28/02/2019,C&M-OES Glaucoma,LOCAL ENHANCED SERVICES,PRIMARY EYECARE SERVICES LTD,26044614,560.00 
Department of Health,NHS Sheffield CCG,28/02/2019,C&M-OES Intra-ocular Ocular Hypertn,LOCAL ENHANCED SERVICES,PRIMARY EYECARE SERVICES LTD,26044614,560.00 
Department of Health,NHS Sheffield CCG,28/02/2019,C&M-OES PEARS,LOCAL ENHANCED SERVICES,PRIMARY EYECARE SERVICES LTD,26044614,"25,133.00 "
Department of Health,NHS Sheffield CCG,28/02/2019,Cont Care-Physical Disab (<65),CHC ADULT FULLY FUNDED,PRIORY GROUP LTD,25944052,"26,849.74 "
Department of Health,NHS Sheffield CCG,28/02/2019,C&M-PMS Contract Value,PRC DELEGATED CO-COMMISSIONING,RICHMOND MEDICAL CENTRE,25926762,"66,305.86 "
Department of Health,NHS Sheffield CCG,28/02/2019,C&M-PMS DES Minor Surgery,PRC DELEGATED CO-COMMISSIONING,RICHMOND MEDICAL CENTRE,25926762,"1,865.00 "
Department of Health,NHS Sheffield CCG,28/02/2019,C&M-PMS Out of Hours Opt Outs,PRC DELEGATED CO-COMMISSIONING,RICHMOND MEDICAL CENTRE,25926762,9.88 
Department of Health,NHS Sheffield CCG,28/02/2019,C&M-PMS PCO Other,PRC DELEGATED CO-COMMISSIONING,RICHMOND MEDICAL CENTRE,25926762,563.76 
Department of Health,NHS Sheffield CCG,28/02/2019,C&M-PMS Prem Notional Rent,PRC DELEGATED CO-COMMISSIONING,RICHMOND MEDICAL CENTRE,25926762,"4,731.00 "
Department of Health,NHS Sheffield CCG,28/02/2019,C&M-PMS QOF Aspiration,PRC DELEGATED CO-COMMISSIONING,RICHMOND MEDICAL CENTRE,25926762,"8,188.48 "
Department of Health,NHS Sheffield CCG,28/02/2019,Cont Care-Funded Nursing Care Allow,FUNDED NURSING CARE,ROSEBERRY CARE CENTRES,26008971,"30,141.73 "
Department of Health,NHS Sheffield CCG,28/02/2019,Cont Care-Physical Disab (<65),CHC ADULT FULLY FUNDED,ROSEBERRY CARE CENTRES,26011037,"28,008.99 "
Department of Health,NHS Sheffield CCG,28/02/2019,Cont Care-Physical Disab (<65),CHC ADULT FULLY FUNDED,ROSEBERRY CARE CENTRES,26011062,"38,614.36 "
Department of Health,NHS Sheffield CCG,28/02/2019,Other Gen Supplies & Srv,CLINICAL LEADS,ROTHERHAM DONCASTER & SOUTH HUMBER MENTAL HEALTH NHS FOUNDATION TRUST,25973814,"28,500.00 "
Department of Health,NHS Sheffield CCG,28/02/2019,Hcare Srv Rec Fdtn Trust-Contract Baseline,ACUTE COMMISSIONING,ROTHERHAM NHS FOUNDATION TRUST,25838227,"428,814.00 "
Department of Health,NHS Sheffield CCG,28/02/2019,Other Gen Supplies & Srv,CLINICAL LEADS,ROTHERHAM NHS FOUNDATION TRUST,25840310,"45,808.00 "
Department of Health,NHS Sheffield CCG,28/02/2019,Other Gen Supplies & Srv,CLINICAL LEADS,ROTHERHAM NHS FOUNDATION TRUST,26130026,"27,000.00 "
Department of Health,NHS Sheffield CCG,28/02/2019,C&M-PMS Contract Value,PRC DELEGATED CO-COMMISSIONING,RUSTLINGS ROAD MEDICAL CENTRE,25926765,"27,608.14 "
Department of Health,NHS Sheffield CCG,28/02/2019,C&M-PMS PCO Other,PRC DELEGATED CO-COMMISSIONING,RUSTLINGS ROAD MEDICAL CENTRE,25926765,347.12 
Department of Health,NHS Sheffield CCG,28/02/2019,C&M-PMS Prem Notional Rent,PRC DELEGATED CO-COMMISSIONING,RUSTLINGS ROAD MEDICAL CENTRE,25926765,"1,167.92 "
Department of Health,NHS Sheffield CCG,28/02/2019,C&M-PMS QOF Aspiration,PRC DELEGATED CO-COMMISSIONING,RUSTLINGS ROAD MEDICAL CENTRE,25926765,"2,389.45 "
Department of Health,NHS Sheffield CCG,28/02/2019,C&M-PMS Contract Value,PRC DELEGATED CO-COMMISSIONING,SELBORNE ROAD MEDICAL CENTRE,25956122,"19,632.79 "
Department of Health,NHS Sheffield CCG,28/02/2019,C&M-PMS DES Learn Dsblty Hlth Chk,PRC DELEGATED CO-COMMISSIONING,SELBORNE ROAD MEDICAL CENTRE,25956122,"1,400.00 "
Department of Health,NHS Sheffield CCG,28/02/2019,C&M-PMS DES Minor Surgery,PRC DELEGATED CO-COMMISSIONING,SELBORNE ROAD MEDICAL CENTRE,25956122,170.00 
Department of Health,NHS Sheffield CCG,28/02/2019,C&M-PMS Out of Hours Opt Outs,PRC DELEGATED CO-COMMISSIONING,SELBORNE ROAD MEDICAL CENTRE,25956122,14.31 
Department of Health,NHS Sheffield CCG,28/02/2019,C&M-PMS Prem Notional Rent,PRC DELEGATED CO-COMMISSIONING,SELBORNE ROAD MEDICAL CENTRE,25956122,"1,735.42 "
Department of Health,NHS Sheffield CCG,28/02/2019,C&M-PMS QOF Aspiration,PRC DELEGATED CO-COMMISSIONING,SELBORNE ROAD MEDICAL CENTRE,25956122,"2,043.75 "
Department of Health,NHS Sheffield CCG,28/02/2019,C&M-GMS Cost of Drugs -Prescribing,LOCAL ENHANCED SERVICES,SHARROW LANE MEDICAL CENTRE,26121182,679.10 
Department of Health,NHS Sheffield CCG,28/02/2019,C&M-GMS DES Minor Surgery,PRC DELEGATED CO-COMMISSIONING,SHARROW LANE MEDICAL CENTRE,26121182,80.00 
Department of Health,NHS Sheffield CCG,28/02/2019,C&M-GMS Global Sum,PRC DELEGATED CO-COMMISSIONING,SHARROW LANE MEDICAL CENTRE,26121182,"23,195.59 "
Department of Health,NHS Sheffield CCG,28/02/2019,C&M-GMS MPIG Correction Factor,PRC DELEGATED CO-COMMISSIONING,SHARROW LANE MEDICAL CENTRE,26121182,"1,960.32 "
Department of Health,NHS Sheffield CCG,28/02/2019,C&M-GMS PCO Other,PRC DELEGATED CO-COMMISSIONING,SHARROW LANE MEDICAL CENTRE,26121182,302.76 
Department of Health,NHS Sheffield CCG,28/02/2019,C&M-GMS Prem Notional Rent,PRC DELEGATED CO-COMMISSIONING,SHARROW LANE MEDICAL CENTRE,26121182,"2,741.66 "
Department of Health,NHS Sheffield CCG,28/02/2019,C&M-GMS Prof Fees Prescribing,PRC DELEGATED CO-COMMISSIONING,SHARROW LANE MEDICAL CENTRE,26121182,128.50 
Department of Health,NHS Sheffield CCG,28/02/2019,C&M-GMS QOF Aspiration,PRC DELEGATED CO-COMMISSIONING,SHARROW LANE MEDICAL CENTRE,26121182,"2,521.19 "
Department of Health,NHS Sheffield CCG,28/02/2019,Hcare Srv Rec Fdtn Trust-CQUIN,ACUTE CHILDRENS SERVICES,SHEFFIELD CHILDRENS NHS FOUNDATION TRUST,25838291,"34,841.00 "
Department of Health,NHS Sheffield CCG,28/02/2019,Hcare Srv Rec Fdtn Trust-CQUIN,COMMUNITY SERVICES,SHEFFIELD CHILDRENS NHS FOUNDATION TRUST,25838291,"3,550.00 "
Department of Health,NHS Sheffield CCG,28/02/2019,Hcare Srv Rec Fdtn Trust-Contract Baseline,ACUTE CHILDRENS SERVICES,SHEFFIELD CHILDRENS NHS FOUNDATION TRUST,25838291,"(37,008.02)"
Department of Health,NHS Sheffield CCG,28/02/2019,Hcare Srv Rec Fdtn Trust-Contract Baseline,CHILD AND ADOLESCENT MENTAL HEALTH,SHEFFIELD CHILDRENS NHS FOUNDATION TRUST,25838291,"27,244.00 "
Department of Health,NHS Sheffield CCG,28/02/2019,Hcare Srv Rec Fdtn Trust-Contract Baseline,COMMUNITY SERVICES,SHEFFIELD CHILDRENS NHS FOUNDATION TRUST,25838291,"(17,364.00)"
Department of Health,NHS Sheffield CCG,28/02/2019,Hcare Srv Rec Fdtn Trust-Contract Baseline,HIGH COST DRUGS,SHEFFIELD CHILDRENS NHS FOUNDATION TRUST,25838291,"2,347.00 "
Department of Health,NHS Sheffield CCG,28/02/2019,Hcare Srv Rec Fdtn Trust-Contract Baseline,MENTAL HEALTH CONTRACTS,SHEFFIELD CHILDRENS NHS FOUNDATION TRUST,25838291,"26,787.00 "
Department of Health,NHS Sheffield CCG,28/02/2019,Hcare Srv Rec Fdtn Trust-Contract Baseline,PLANNED CARE,SHEFFIELD CHILDRENS NHS FOUNDATION TRUST,25838291,"(138,752.00)"
Department of Health,NHS Sheffield CCG,28/02/2019,Hcare Srv Rec Fdtn Trust-Contract Baseline,SAFEGUARDING,SHEFFIELD CHILDRENS NHS FOUNDATION TRUST,25838291,"(1,021.00)"
Department of Health,NHS Sheffield CCG,28/02/2019,Hcare Srv Rec Fdtn Trust-Contract Baseline,URGENT CARE,SHEFFIELD CHILDRENS NHS FOUNDATION TRUST,25838291,"165,187.00 "
Department of Health,NHS Sheffield CCG,28/02/2019,Hcare Srv Rec Fdtn Trust-Non Contract,CHILD AND ADOLESCENT MENTAL HEALTH,SHEFFIELD CHILDRENS NHS FOUNDATION TRUST,25943445,"84,250.00 "
Department of Health,NHS Sheffield CCG,28/02/2019,Hcare Srv Rec Fdtn Trust-CQUIN,ACUTE CHILDRENS SERVICES,SHEFFIELD CHILDRENS NHS FOUNDATION TRUST,26089931,"33,781.00 "
Department of Health,NHS Sheffield CCG,28/02/2019,Hcare Srv Rec Fdtn Trust-CQUIN,COMMUNITY SERVICES,SHEFFIELD CHILDRENS NHS FOUNDATION TRUST,26089931,"3,984.00 "
Department of Health,NHS Sheffield CCG,28/02/2019,Hcare Srv Rec Fdtn Trust-Contract Baseline,ACUTE CHILDRENS SERVICES,SHEFFIELD CHILDRENS NHS FOUNDATION TRUST,26089931,"259,425.79 "
Department of Health,NHS Sheffield CCG,28/02/2019,Hcare Srv Rec Fdtn Trust-Contract Baseline,CHILD AND ADOLESCENT MENTAL HEALTH,SHEFFIELD CHILDRENS NHS FOUNDATION TRUST,26089931,"429,451.00 "
Department of Health,NHS Sheffield CCG,28/02/2019,Hcare Srv Rec Fdtn Trust-Contract Baseline,COMMUNITY SERVICES,SHEFFIELD CHILDRENS NHS FOUNDATION TRUST,26089931,"318,731.00 "
Department of Health,NHS Sheffield CCG,28/02/2019,Hcare Srv Rec Fdtn Trust-Contract Baseline,HIGH COST DRUGS,SHEFFIELD CHILDRENS NHS FOUNDATION TRUST,26089931,"62,433.00 "
Department of Health,NHS Sheffield CCG,28/02/2019,Hcare Srv Rec Fdtn Trust-Contract Baseline,MENTAL HEALTH CONTRACTS,SHEFFIELD CHILDRENS NHS FOUNDATION TRUST,26089931,"5,096.00 "
Department of Health,NHS Sheffield CCG,28/02/2019,Hcare Srv Rec Fdtn Trust-Contract Baseline,PLANNED CARE,SHEFFIELD CHILDRENS NHS FOUNDATION TRUST,26089931,"956,921.00 "
Department of Health,NHS Sheffield CCG,28/02/2019,Hcare Srv Rec Fdtn Trust-Contract Baseline,SAFEGUARDING,SHEFFIELD CHILDRENS NHS FOUNDATION TRUST,26089931,"33,664.00 "
Department of Health,NHS Sheffield CCG,28/02/2019,Hcare Srv Rec Fdtn Trust-Contract Baseline,URGENT CARE,SHEFFIELD CHILDRENS NHS FOUNDATION TRUST,26089931,"983,413.00 "
Department of Health,NHS Sheffield CCG,28/02/2019,Prescribing,PRESCRIBING,SHEFFIELD CITY COUNCIL,25943544,"27,213.66 "
Department of Health,NHS Sheffield CCG,28/02/2019,Clinical&Medical-Othe Public Sector,COMMISSIONING - NON ACUTE,SHEFFIELD CITY COUNCIL,25943742,"21,831.00 "
Department of Health,NHS Sheffield CCG,28/02/2019,Clinical&Medical-Othe Public Sector,MENTAL HEALTH SERVICES - COLLABORATIVE COMMISSIONING,SHEFFIELD CITY COUNCIL,25943742,"14,169.00 "
Department of Health,NHS Sheffield CCG,28/02/2019,Clinical&Medical-Othe Public Sector,REABLEMENT,SHEFFIELD CITY COUNCIL,25943742,"160,416.00 "
Department of Health,NHS Sheffield CCG,28/02/2019,Clinical&Medical-Othe Public Sector,SAFEGUARDING,SHEFFIELD CITY COUNCIL,25943742,"15,324.00 "
Department of Health,NHS Sheffield CCG,28/02/2019,Soc Care-Joint H&C Teams/Working,COMMISSIONING - NON ACUTE,SHEFFIELD CITY COUNCIL,25943742,"151,448.00 "
Department of Health,NHS Sheffield CCG,28/02/2019,Soc Care-Other Soc Care,COMMISSIONING - NON ACUTE,SHEFFIELD CITY COUNCIL,25943742,"1,467,750.00 "
Department of Health,NHS Sheffield CCG,28/02/2019,Soc Care-Support Prim Care,COMMUNITY SERVICES,SHEFFIELD CITY COUNCIL,25943742,"58,000.00 "
Department of Health,NHS Sheffield CCG,28/02/2019,Services From Local Authorities,MENTAL HEALTH SERVICES - COLLABORATIVE COMMISSIONING,SHEFFIELD CITY COUNCIL,26044583,"48,000.00 "
Department of Health,NHS Sheffield CCG,28/02/2019,Cont Care- Children,CHC CHILDREN,SHEFFIELD CITY COUNCIL,26044697,"31,223.40 "
Department of Health,NHS Sheffield CCG,28/02/2019,Cont Care- Prior Year Payments,CHC ADULT FULLY FUNDED,SHEFFIELD CITY COUNCIL,26092082,"224,513.61 "
Department of Health,NHS Sheffield CCG,28/02/2019,Cont Care-Physical Disab (65+),CHC ADULT FULLY FUNDED,SHEFFIELD CITY COUNCIL,26092093,"773,171.54 "
Department of Health,NHS Sheffield CCG,28/02/2019,Clinical&Medical-Othe Public Sector,CHILD AND ADOLESCENT MENTAL HEALTH,SHEFFIELD CITY COUNCIL,26146047,"56,043.00 "
Department of Health,NHS Sheffield CCG,28/02/2019,Services From Local Authorities,MENTAL HEALTH SERVICES - COLLABORATIVE COMMISSIONING,SHEFFIELD CITY COUNCIL,26202194,"30,000.00 "
Department of Health,NHS Sheffield CCG,28/02/2019,C&M-APMS LES Translation Fees,LOCAL ENHANCED SERVICES,SHEFFIELD HEALTH & SOCIAL CARE NHS FOUNDATION TRUST,25822386,"57,500.00 "
Department of Health,NHS Sheffield CCG,28/02/2019,C&M-APMS Contract Value,PRC DELEGATED CO-COMMISSIONING,SHEFFIELD HEALTH & SOCIAL CARE NHS FOUNDATION TRUST,25933348,"126,357.35 "
Department of Health,NHS Sheffield CCG,28/02/2019,C&M-APMS OOH Opt Outs,PRC DELEGATED CO-COMMISSIONING,SHEFFIELD HEALTH & SOCIAL CARE NHS FOUNDATION TRUST,25933348,5.00 
Department of Health,NHS Sheffield CCG,28/02/2019,C&M-APMS Prem Actual Rent,PRC DELEGATED CO-COMMISSIONING,SHEFFIELD HEALTH & SOCIAL CARE NHS FOUNDATION TRUST,25933348,"5,169.68 "
Department of Health,NHS Sheffield CCG,28/02/2019,C&M-APMS Prem Healthcentre Rent,PRC DELEGATED CO-COMMISSIONING,SHEFFIELD HEALTH & SOCIAL CARE NHS FOUNDATION TRUST,25933348,"59,021.14 "
Department of Health,NHS Sheffield CCG,28/02/2019,C&M-APMS Prem Notional Rent,PRC DELEGATED CO-COMMISSIONING,SHEFFIELD HEALTH & SOCIAL CARE NHS FOUNDATION TRUST,25933348,"2,804.17 "
Department of Health,NHS Sheffield CCG,28/02/2019,C&M-PMS Contract Value,PRC DELEGATED CO-COMMISSIONING,SHEFFIELD HEALTH & SOCIAL CARE NHS FOUNDATION TRUST,25933348,"2,915.63 "
Department of Health,NHS Sheffield CCG,28/02/2019,C&M-PMS Out of Hours Opt Outs,PRC DELEGATED CO-COMMISSIONING,SHEFFIELD HEALTH & SOCIAL CARE NHS FOUNDATION TRUST,25933348,107.98 
Department of Health,NHS Sheffield CCG,28/02/2019,C&M-PMS QOF Aspiration,PRC DELEGATED CO-COMMISSIONING,SHEFFIELD HEALTH & SOCIAL CARE NHS FOUNDATION TRUST,25933348,"11,714.38 "
Department of Health,NHS Sheffield CCG,28/02/2019,C&M-APMS Contract Value,PRC DELEGATED CO-COMMISSIONING,SHEFFIELD HEALTH & SOCIAL CARE NHS FOUNDATION TRUST,25933352,"27,700.75 "
Department of Health,NHS Sheffield CCG,28/02/2019,C&M-APMS OOH Opt Outs,PRC DELEGATED CO-COMMISSIONING,SHEFFIELD HEALTH & SOCIAL CARE NHS FOUNDATION TRUST,25933352,8.11 
Department of Health,NHS Sheffield CCG,28/02/2019,C&M-PMS Contract Value,PRC DELEGATED CO-COMMISSIONING,SHEFFIELD HEALTH & SOCIAL CARE NHS FOUNDATION TRUST,25933352,639.51 
Department of Health,NHS Sheffield CCG,28/02/2019,C&M-PMS DES Minor Surgery,PRC DELEGATED CO-COMMISSIONING,SHEFFIELD HEALTH & SOCIAL CARE NHS FOUNDATION TRUST,25933352,40.00 
Department of Health,NHS Sheffield CCG,28/02/2019,C&M-PMS Out of Hours Opt Outs,PRC DELEGATED CO-COMMISSIONING,SHEFFIELD HEALTH & SOCIAL CARE NHS FOUNDATION TRUST,25933352,23.68 
Department of Health,NHS Sheffield CCG,28/02/2019,C&M-PMS QOF Aspiration,PRC DELEGATED CO-COMMISSIONING,SHEFFIELD HEALTH & SOCIAL CARE NHS FOUNDATION TRUST,25933352,"1,425.29 "
Department of Health,NHS Sheffield CCG,28/02/2019,Cont Care-NHSFT-Adult 100% Funded,CHC ADULT FULLY FUNDED,SHEFFIELD HEALTH & SOCIAL CARE NHS FOUNDATION TRUST,25984210,"240,830.02 "
Department of Health,NHS Sheffield CCG,28/02/2019,C&M-GMS LES PACT,LOCAL ENHANCED SERVICES,SHEFFIELD LOCAL MEDICAL COMMITTEE STATUTORY LEVY,26011184,"30,000.00 "
Department of Health,NHS Sheffield CCG,28/02/2019,C&M-GMS LES PACT,LOCAL ENHANCED SERVICES,SHEFFIELD LOCAL MEDICAL COMMITTEE STATUTORY LEVY,26011265,"30,000.00 "
Department of Health,NHS Sheffield CCG,28/02/2019,Other Gen Supplies & Srv,BEREAVEMENT SERVICE,SHEFFIELD TEACHING HOSPITALS NHS FOUNDATION TRUST,25813139,"230,200.00 "
Department of Health,NHS Sheffield CCG,28/02/2019,PREPYMT OVERSEAS NON EEA PATIENTS,CHC ADULT FULLY FUNDED,SHEFFIELD TEACHING HOSPITALS NHS FOUNDATION TRUST,25907121,"33,954.75 "
Department of Health,NHS Sheffield CCG,28/02/2019,C&M-GMS LES Care Planning,LOCAL ENHANCED SERVICES,SHEFFIELD TEACHING HOSPITALS NHS FOUNDATION TRUST,25943092,"26,000.00 "
Department of Health,NHS Sheffield CCG,28/02/2019,External Consultancy Fees,CLINICAL LEADS,SHEFFIELD TEACHING HOSPITALS NHS FOUNDATION TRUST,25946932,"38,757.00 "
Department of Health,NHS Sheffield CCG,28/02/2019,Hcare Srv Rec Fdtn Trust-Contract Baseline,ACUTE COMMISSIONING,SHEFFIELD TEACHING HOSPITALS NHS FOUNDATION TRUST,26008882,"336,802.00 "
Department of Health,NHS Sheffield CCG,28/02/2019,Hcare Srv Rec Fdtn Trust-Non Contract,LONG TERM CONDITIONS,SHEFFIELD TEACHING HOSPITALS NHS FOUNDATION TRUST,26092534,"171,800.00 "
Department of Health,NHS Sheffield CCG,28/02/2019,Miscellaneous Expenditure (L9),CLINICAL LEADS,SHEFFIELD TEACHING HOSPITALS NHS FOUNDATION TRUST,26093061,"54,981.00 "
Department of Health,NHS Sheffield CCG,28/02/2019,Hcare Srv Rec Fdtn Trust-Contract Baseline,ACUTE COMMISSIONING,SHEFFIELD TEACHING HOSPITALS NHS FOUNDATION TRUST,26125708,"1,280,879.00 "
Department of Health,NHS Sheffield CCG,28/02/2019,Hcare Srv Rec Fdtn Trust-Contract Baseline,ACUTE COMMISSIONING,SHEFFIELD TEACHING HOSPITALS NHS FOUNDATION TRUST,26125712,"336,802.00 "
Department of Health,NHS Sheffield CCG,28/02/2019,Hcare Srv Rec Fdtn Trust-Contract Baseline,ACUTE COMMISSIONING,SHEFFIELD TEACHING HOSPITALS NHS FOUNDATION TRUST,26125727,"27,862,481.00 "
Department of Health,NHS Sheffield CCG,28/02/2019,Hcare Srv Rec Fdtn Trust-Contract Baseline,ACUTE COMMISSIONING,SHEFFIELD TEACHING HOSPITALS NHS FOUNDATION TRUST,26125731,"3,905,387.00 "
Department of Health,NHS Sheffield CCG,28/02/2019,Other Gen Supplies & Srv,CLINICAL LEADS,SHEFFIELD TEACHING HOSPITALS NHS FOUNDATION TRUST,26129356,"152,100.00 "
Department of Health,NHS Sheffield CCG,28/02/2019,C&M-GMS Global Sum,PRC DELEGATED CO-COMMISSIONING,SHIREGREEN MEDICAL CENTRE,26121189,"58,730.53 "
Department of Health,NHS Sheffield CCG,28/02/2019,C&M-GMS MPIG Correction Factor,PRC DELEGATED CO-COMMISSIONING,SHIREGREEN MEDICAL CENTRE,26121189,453.69 
Department of Health,NHS Sheffield CCG,28/02/2019,C&M-GMS Prem Cost Rent,PRC DELEGATED CO-COMMISSIONING,SHIREGREEN MEDICAL CENTRE,26121189,"1,792.33 "
Department of Health,NHS Sheffield CCG,28/02/2019,C&M-GMS Prem Notional Rent,PRC DELEGATED CO-COMMISSIONING,SHIREGREEN MEDICAL CENTRE,26121189,"5,375.00 "
Department of Health,NHS Sheffield CCG,28/02/2019,C&M-GMS QOF Aspiration,PRC DELEGATED CO-COMMISSIONING,SHIREGREEN MEDICAL CENTRE,26121189,"6,765.83 "
Department of Health,NHS Sheffield CCG,28/02/2019,C&M-PMS Contract Value,PRC DELEGATED CO-COMMISSIONING,SLOAN MEDICAL CENTRE,25926767,"94,707.91 "
Department of Health,NHS Sheffield CCG,28/02/2019,C&M-PMS DES Learn Dsblty Hlth Chk,PRC DELEGATED CO-COMMISSIONING,SLOAN MEDICAL CENTRE,25926767,"6,300.00 "
Department of Health,NHS Sheffield CCG,28/02/2019,C&M-PMS DES Minor Surgery,PRC DELEGATED CO-COMMISSIONING,SLOAN MEDICAL CENTRE,25926767,"3,035.00 "
Department of Health,NHS Sheffield CCG,28/02/2019,C&M-PMS PCO Other,PRC DELEGATED CO-COMMISSIONING,SLOAN MEDICAL CENTRE,25926767,879.12 
Department of Health,NHS Sheffield CCG,28/02/2019,C&M-PMS Prem Actual Rent,PRC DELEGATED CO-COMMISSIONING,SLOAN MEDICAL CENTRE,25926767,"15,535.83 "
Department of Health,NHS Sheffield CCG,28/02/2019,C&M-PMS Prem Notional Rent,PRC DELEGATED CO-COMMISSIONING,SLOAN MEDICAL CENTRE,25926767,608.33 
Department of Health,NHS Sheffield CCG,28/02/2019,C&M-PMS QOF Aspiration,PRC DELEGATED CO-COMMISSIONING,SLOAN MEDICAL CENTRE,25926767,"9,952.56 "
Department of Health,NHS Sheffield CCG,28/02/2019,C&M-PMS Contract Value,PRC DELEGATED CO-COMMISSIONING,SOTHALL MEDICAL CENTRE,25926769,"71,233.54 "
Department of Health,NHS Sheffield CCG,28/02/2019,C&M-PMS DES Learn Dsblty Hlth Chk,PRC DELEGATED CO-COMMISSIONING,SOTHALL MEDICAL CENTRE,25926769,"1,260.00 "
Department of Health,NHS Sheffield CCG,28/02/2019,C&M-PMS DES Minor Surgery,PRC DELEGATED CO-COMMISSIONING,SOTHALL MEDICAL CENTRE,25926769,"1,500.00 "
Department of Health,NHS Sheffield CCG,28/02/2019,C&M-PMS Out of Hours Opt Outs,PRC DELEGATED CO-COMMISSIONING,SOTHALL MEDICAL CENTRE,25926769,47.85 
Department of Health,NHS Sheffield CCG,28/02/2019,C&M-PMS PCO Other,PRC DELEGATED CO-COMMISSIONING,SOTHALL MEDICAL CENTRE,25926769,701.89 
Department of Health,NHS Sheffield CCG,28/02/2019,C&M-PMS Prem Notional Rent,PRC DELEGATED CO-COMMISSIONING,SOTHALL MEDICAL CENTRE,25926769,"5,116.67 "
Department of Health,NHS Sheffield CCG,28/02/2019,C&M-PMS Prem Water Rates,PRC DELEGATED CO-COMMISSIONING,SOTHALL MEDICAL CENTRE,25926769,116.64 
Department of Health,NHS Sheffield CCG,28/02/2019,C&M-PMS QOF Aspiration,PRC DELEGATED CO-COMMISSIONING,SOTHALL MEDICAL CENTRE,25926769,"8,691.35 "
Department of Health,NHS Sheffield CCG,28/02/2019,Clinical&Medical-Independent Sector,MENTAL HEALTH CONTRACTS,SOUTH YORKSHIRE HOUSING ASSOCIATION LTD,25943368,"34,435.00 "
Department of Health,NHS Sheffield CCG,28/02/2019,Cont Care- Adult 100% Fully Funded,CHC ADULT FULLY FUNDED,SOUTH YORKSHIRE HOUSING ASSOCIATION LTD,25943415,"25,500.00 "
Department of Health,NHS Sheffield CCG,28/02/2019,Cont Care-Physical Disab (<65),CHC ADULT FULLY FUNDED,SOUTH YORKSHIRE HOUSING ASSOCIATION LTD,25944051,"82,779.38 "
Department of Health,NHS Sheffield CCG,28/02/2019,C&M-PMS Contract Value,PRC DELEGATED CO-COMMISSIONING,SOUTHEY GREEN MEDICAL CENTRE,25926771,"26,388.53 "
Department of Health,NHS Sheffield CCG,28/02/2019,C&M-PMS Out of Hours Opt Outs,PRC DELEGATED CO-COMMISSIONING,SOUTHEY GREEN MEDICAL CENTRE,25926771,93.65 
Department of Health,NHS Sheffield CCG,28/02/2019,C&M-PMS Prem Notional Rent,PRC DELEGATED CO-COMMISSIONING,SOUTHEY GREEN MEDICAL CENTRE,25926771,"3,362.50 "
Department of Health,NHS Sheffield CCG,28/02/2019,C&M-PMS QOF Aspiration,PRC DELEGATED CO-COMMISSIONING,SOUTHEY GREEN MEDICAL CENTRE,25926771,"2,539.36 "
Department of Health,NHS Sheffield CCG,28/02/2019,C&M-GMS Cost of Drugs -Prescribing,LOCAL ENHANCED SERVICES,STANNINGTON MEDICAL CENTRE,26121193,"10,959.18 "
Department of Health,NHS Sheffield CCG,28/02/2019,C&M-GMS DES Minor Surgery,PRC DELEGATED CO-COMMISSIONING,STANNINGTON MEDICAL CENTRE,26121193,240.00 
Department of Health,NHS Sheffield CCG,28/02/2019,C&M-GMS Global Sum,PRC DELEGATED CO-COMMISSIONING,STANNINGTON MEDICAL CENTRE,26121193,"24,884.90 "
Department of Health,NHS Sheffield CCG,28/02/2019,C&M-GMS PCO Other,PRC DELEGATED CO-COMMISSIONING,STANNINGTON MEDICAL CENTRE,26121193,257.72 
Department of Health,NHS Sheffield CCG,28/02/2019,C&M-GMS Prem Notional Rent,PRC DELEGATED CO-COMMISSIONING,STANNINGTON MEDICAL CENTRE,26121193,"2,575.00 "
Department of Health,NHS Sheffield CCG,28/02/2019,C&M-GMS Prof Fees Prescribing,PRC DELEGATED CO-COMMISSIONING,STANNINGTON MEDICAL CENTRE,26121193,"2,485.34 "
Department of Health,NHS Sheffield CCG,28/02/2019,C&M-GMS QOF Aspiration,PRC DELEGATED CO-COMMISSIONING,STANNINGTON MEDICAL CENTRE,26121193,"2,850.04 "
Department of Health,NHS Sheffield CCG,28/02/2019,C&M-GMS Cost of Drugs -Prescribing,LOCAL ENHANCED SERVICES,STONECROFT MEDICAL CENTRE,26121191,"4,440.06 "
Department of Health,NHS Sheffield CCG,28/02/2019,C&M-GMS DES Learn Dsblty Hlth Chk,PRC DELEGATED CO-COMMISSIONING,STONECROFT MEDICAL CENTRE,26121191,"1,120.00 "
Department of Health,NHS Sheffield CCG,28/02/2019,C&M-GMS DES Minor Surgery,PRC DELEGATED CO-COMMISSIONING,STONECROFT MEDICAL CENTRE,26121191,"1,080.00 "
Department of Health,NHS Sheffield CCG,28/02/2019,C&M-GMS Global Sum,PRC DELEGATED CO-COMMISSIONING,STONECROFT MEDICAL CENTRE,26121191,"31,680.53 "
Department of Health,NHS Sheffield CCG,28/02/2019,C&M-GMS MPIG Correction Factor,PRC DELEGATED CO-COMMISSIONING,STONECROFT MEDICAL CENTRE,26121191,618.25 
Department of Health,NHS Sheffield CCG,28/02/2019,C&M-GMS PCO Other,PRC DELEGATED CO-COMMISSIONING,STONECROFT MEDICAL CENTRE,26121191,315.76 
Department of Health,NHS Sheffield CCG,28/02/2019,C&M-GMS Prem Notional Rent,PRC DELEGATED CO-COMMISSIONING,STONECROFT MEDICAL CENTRE,26121191,"2,808.33 "
Department of Health,NHS Sheffield CCG,28/02/2019,C&M-GMS Prof Fees Prescribing,PRC DELEGATED CO-COMMISSIONING,STONECROFT MEDICAL CENTRE,26121191,989.45 
Department of Health,NHS Sheffield CCG,28/02/2019,C&M-GMS QOF Aspiration,PRC DELEGATED CO-COMMISSIONING,STONECROFT MEDICAL CENTRE,26121191,"4,160.47 "
Department of Health,NHS Sheffield CCG,28/02/2019,Clinical&Medical-Independent Sector,MENTAL HEALTH CONTRACTS,SUSASH GB LTD T/A EAGLE HOUSE,25943403,"30,092.00 "
Department of Health,NHS Sheffield CCG,28/02/2019,C&M-GMS Cost of Drugs -Prescribing,LOCAL ENHANCED SERVICES,TOTLEY RISE MEDICAL CENTRE,26121195,"7,731.08 "
Department of Health,NHS Sheffield CCG,28/02/2019,C&M-GMS Global Sum,PRC DELEGATED CO-COMMISSIONING,TOTLEY RISE MEDICAL CENTRE,26121195,"24,336.38 "
Department of Health,NHS Sheffield CCG,28/02/2019,C&M-GMS MPIG Correction Factor,PRC DELEGATED CO-COMMISSIONING,TOTLEY RISE MEDICAL CENTRE,26121195,103.13 
Department of Health,NHS Sheffield CCG,28/02/2019,C&M-GMS Prem Notional Rent,PRC DELEGATED CO-COMMISSIONING,TOTLEY RISE MEDICAL CENTRE,26121195,"1,491.67 "
Department of Health,NHS Sheffield CCG,28/02/2019,C&M-GMS Prof Fees Prescribing,PRC DELEGATED CO-COMMISSIONING,TOTLEY RISE MEDICAL CENTRE,26121195,"1,753.04 "
Department of Health,NHS Sheffield CCG,28/02/2019,C&M-GMS QOF Aspiration,PRC DELEGATED CO-COMMISSIONING,TOTLEY RISE MEDICAL CENTRE,26121195,"1,881.75 "
Department of Health,NHS Sheffield CCG,28/02/2019,C&M-GMS Cost of Drugs -Prescribing,LOCAL ENHANCED SERVICES,TRAMWAYS MEDICAL CENTRE,26121197,"1,430.67 "
Department of Health,NHS Sheffield CCG,28/02/2019,C&M-GMS DES Minor Surgery,PRC DELEGATED CO-COMMISSIONING,TRAMWAYS MEDICAL CENTRE,26121197,"8,190.00 "
Department of Health,NHS Sheffield CCG,28/02/2019,C&M-GMS Global Sum,PRC DELEGATED CO-COMMISSIONING,TRAMWAYS MEDICAL CENTRE,26121197,"60,811.03 "
Department of Health,NHS Sheffield CCG,28/02/2019,C&M-GMS PCO Other,PRC DELEGATED CO-COMMISSIONING,TRAMWAYS MEDICAL CENTRE,26121197,597.76 
Department of Health,NHS Sheffield CCG,28/02/2019,C&M-GMS Prem Cost Rent,PRC DELEGATED CO-COMMISSIONING,TRAMWAYS MEDICAL CENTRE,26121197,"4,012.75 "
Department of Health,NHS Sheffield CCG,28/02/2019,C&M-GMS Prof Fees Prescribing,PRC DELEGATED CO-COMMISSIONING,TRAMWAYS MEDICAL CENTRE,26121197,264.71 
Department of Health,NHS Sheffield CCG,28/02/2019,C&M-GMS QOF Aspiration,PRC DELEGATED CO-COMMISSIONING,TRAMWAYS MEDICAL CENTRE,26121197,"5,780.50 "
Department of Health,NHS Sheffield CCG,28/02/2019,Cont Care-Funded Nursing Care Allow,FUNDED NURSING CARE,ULTIMA CARE CENTRES (NO1) LTD,26011116,"29,259.60 "
Department of Health,NHS Sheffield CCG,28/02/2019,C&M-PMS Contract Value,PRC DELEGATED CO-COMMISSIONING,UNIVERSITY HEALTH SERVICE,25926774,"(18,352.98)"
Department of Health,NHS Sheffield CCG,28/02/2019,C&M-PMS Out of Hours Opt Outs,PRC DELEGATED CO-COMMISSIONING,UNIVERSITY HEALTH SERVICE,25926774,"(9,365.01)"
Department of Health,NHS Sheffield CCG,28/02/2019,C&M-PMS Contract Value,PRC DELEGATED CO-COMMISSIONING,UNIVERSITY HEALTH SERVICE,25926775,"192,415.94 "
Department of Health,NHS Sheffield CCG,28/02/2019,C&M-PMS DES Minor Surgery,PRC DELEGATED CO-COMMISSIONING,UNIVERSITY HEALTH SERVICE,25926775,"3,995.00 "
Department of Health,NHS Sheffield CCG,28/02/2019,C&M-PMS Out of Hours Opt Outs,PRC DELEGATED CO-COMMISSIONING,UNIVERSITY HEALTH SERVICE,25926775,902.50 
Department of Health,NHS Sheffield CCG,28/02/2019,C&M-PMS Prem Notional Rent,PRC DELEGATED CO-COMMISSIONING,UNIVERSITY HEALTH SERVICE,25926775,"15,833.33 "
Department of Health,NHS Sheffield CCG,28/02/2019,C&M-PMS Prem Water Rates,PRC DELEGATED CO-COMMISSIONING,UNIVERSITY HEALTH SERVICE,25926775,734.37 
Department of Health,NHS Sheffield CCG,28/02/2019,C&M-PMS QOF Aspiration,PRC DELEGATED CO-COMMISSIONING,UNIVERSITY HEALTH SERVICE,25926775,"3,984.72 "
Department of Health,NHS Sheffield CCG,28/02/2019,Other Research Exp,Nursing and Quality Programme,UNIVERSITY OF SHEFFIELD,25885889,"64,581.63 "
Department of Health,NHS Sheffield CCG,28/02/2019,C&M-GMS Cost of Drugs -Prescribing,LOCAL ENHANCED SERVICES,UPPERTHORPE MEDICAL CENTRE,26121200,"4,305.87 "
Department of Health,NHS Sheffield CCG,28/02/2019,C&M-GMS DES Learn Dsblty Hlth Chk,PRC DELEGATED CO-COMMISSIONING,UPPERTHORPE MEDICAL CENTRE,26121200,"1,120.00 "
Department of Health,NHS Sheffield CCG,28/02/2019,C&M-GMS DES Minor Surgery,PRC DELEGATED CO-COMMISSIONING,UPPERTHORPE MEDICAL CENTRE,26121200,"1,185.00 "
Department of Health,NHS Sheffield CCG,28/02/2019,C&M-GMS Global Sum,PRC DELEGATED CO-COMMISSIONING,UPPERTHORPE MEDICAL CENTRE,26121200,"81,133.18 "
Department of Health,NHS Sheffield CCG,28/02/2019,C&M-GMS MPIG Correction Factor,PRC DELEGATED CO-COMMISSIONING,UPPERTHORPE MEDICAL CENTRE,26121200,"1,325.74 "
Department of Health,NHS Sheffield CCG,28/02/2019,C&M-GMS Prem Notional Rent,PRC DELEGATED CO-COMMISSIONING,UPPERTHORPE MEDICAL CENTRE,26121200,"2,497.83 "
Department of Health,NHS Sheffield CCG,28/02/2019,C&M-GMS Prof Fees Prescribing,PRC DELEGATED CO-COMMISSIONING,UPPERTHORPE MEDICAL CENTRE,26121200,724.74 
Department of Health,NHS Sheffield CCG,28/02/2019,C&M-GMS QOF Aspiration,PRC DELEGATED CO-COMMISSIONING,UPPERTHORPE MEDICAL CENTRE,26121200,"8,681.64 "
Department of Health,NHS Sheffield CCG,28/02/2019,C&M-PMS Contract Value,PRC DELEGATED CO-COMMISSIONING,UPWELL STREET SURGERY,25926777,"38,071.08 "
Department of Health,NHS Sheffield CCG,28/02/2019,C&M-PMS DES Minor Surgery,PRC DELEGATED CO-COMMISSIONING,UPWELL STREET SURGERY,25926777,520.00 
Department of Health,NHS Sheffield CCG,28/02/2019,C&M-PMS Out of Hours Opt Outs,PRC DELEGATED CO-COMMISSIONING,UPWELL STREET SURGERY,25926777,17.00 
Department of Health,NHS Sheffield CCG,28/02/2019,C&M-PMS PCO Other,PRC DELEGATED CO-COMMISSIONING,UPWELL STREET SURGERY,25926777,357.47 
Department of Health,NHS Sheffield CCG,28/02/2019,C&M-PMS Prem Notional Rent,PRC DELEGATED CO-COMMISSIONING,UPWELL STREET SURGERY,25926777,"8,137.50 "
Department of Health,NHS Sheffield CCG,28/02/2019,C&M-PMS Prem Rates,PRC DELEGATED CO-COMMISSIONING,UPWELL STREET SURGERY,25926777,"1,265.00 "
Department of Health,NHS Sheffield CCG,28/02/2019,C&M-PMS QOF Aspiration,PRC DELEGATED CO-COMMISSIONING,UPWELL STREET SURGERY,25926777,"4,294.99 "
Department of Health,NHS Sheffield CCG,28/02/2019,C&M-PMS Contract Value,PRC DELEGATED CO-COMMISSIONING,VALLEY MEDICAL CENTRE,25926779,"78,391.66 "
Department of Health,NHS Sheffield CCG,28/02/2019,C&M-PMS DES Minor Surgery,PRC DELEGATED CO-COMMISSIONING,VALLEY MEDICAL CENTRE,25926779,"1,245.00 "
Department of Health,NHS Sheffield CCG,28/02/2019,C&M-PMS Out of Hours Opt Outs,PRC DELEGATED CO-COMMISSIONING,VALLEY MEDICAL CENTRE,25926779,7.70 
Department of Health,NHS Sheffield CCG,28/02/2019,C&M-PMS Prem Water Rates,PRC DELEGATED CO-COMMISSIONING,VALLEY MEDICAL CENTRE,25926779,370.80 
Department of Health,NHS Sheffield CCG,28/02/2019,C&M-PMS QOF Aspiration,PRC DELEGATED CO-COMMISSIONING,VALLEY MEDICAL CENTRE,25926779,"8,516.48 "
Department of Health,NHS Sheffield CCG,28/02/2019,C&M-GMS Cost of Drugs -Prescribing,LOCAL ENHANCED SERVICES,WALKLEY HOUSE MEDICAL CENTRE,26121205,"2,345.39 "
Department of Health,NHS Sheffield CCG,28/02/2019,C&M-GMS DES Minor Surgery,PRC DELEGATED CO-COMMISSIONING,WALKLEY HOUSE MEDICAL CENTRE,26121205,930.00 
Department of Health,NHS Sheffield CCG,28/02/2019,C&M-GMS Global Sum,PRC DELEGATED CO-COMMISSIONING,WALKLEY HOUSE MEDICAL CENTRE,26121205,"84,194.56 "
Department of Health,NHS Sheffield CCG,28/02/2019,C&M-GMS Prem Notional Rent,PRC DELEGATED CO-COMMISSIONING,WALKLEY HOUSE MEDICAL CENTRE,26121205,"5,635.50 "
Department of Health,NHS Sheffield CCG,28/02/2019,C&M-GMS Prof Fees Prescribing,PRC DELEGATED CO-COMMISSIONING,WALKLEY HOUSE MEDICAL CENTRE,26121205,483.16 
Department of Health,NHS Sheffield CCG,28/02/2019,C&M-GMS QOF Aspiration,PRC DELEGATED CO-COMMISSIONING,WALKLEY HOUSE MEDICAL CENTRE,26121205,"8,592.68 "
Department of Health,NHS Sheffield CCG,28/02/2019,C&M-GMS Cost of Drugs -Prescribing,LOCAL ENHANCED SERVICES,WHITE HOUSE SURGERY SHEFFIELD,26121203,"1,738.09 "
Department of Health,NHS Sheffield CCG,28/02/2019,C&M-GMS DES Minor Surgery,PRC DELEGATED CO-COMMISSIONING,WHITE HOUSE SURGERY SHEFFIELD,26121203,320.00 
Department of Health,NHS Sheffield CCG,28/02/2019,C&M-GMS Global Sum,PRC DELEGATED CO-COMMISSIONING,WHITE HOUSE SURGERY SHEFFIELD,26121203,"50,317.55 "
Department of Health,NHS Sheffield CCG,28/02/2019,C&M-GMS MPIG Correction Factor,PRC DELEGATED CO-COMMISSIONING,WHITE HOUSE SURGERY SHEFFIELD,26121203,"1,391.30 "
Department of Health,NHS Sheffield CCG,28/02/2019,C&M-GMS Prem Notional Rent,PRC DELEGATED CO-COMMISSIONING,WHITE HOUSE SURGERY SHEFFIELD,26121203,"9,104.17 "
Department of Health,NHS Sheffield CCG,28/02/2019,C&M-GMS Prof Fees Prescribing,PRC DELEGATED CO-COMMISSIONING,WHITE HOUSE SURGERY SHEFFIELD,26121203,531.99 
Department of Health,NHS Sheffield CCG,28/02/2019,C&M-GMS QOF Aspiration,PRC DELEGATED CO-COMMISSIONING,WHITE HOUSE SURGERY SHEFFIELD,26121203,"6,017.46 "
Department of Health,NHS Sheffield CCG,28/02/2019,Cont Care-Physical Disab (<65),CHC ADULT FULLY FUNDED,WILLOWBECK HEALTH CARE LTD,25943808,"126,562.90 "
Department of Health,NHS Sheffield CCG,28/02/2019,C&M-PMS Contract Value,PRC DELEGATED CO-COMMISSIONING,WINCOBANK MEDICAL CENTRE,25926783,"62,037.97 "
Department of Health,NHS Sheffield CCG,28/02/2019,C&M-PMS DES Learn Dsblty Hlth Chk,PRC DELEGATED CO-COMMISSIONING,WINCOBANK MEDICAL CENTRE,25926783,"1,260.00 "
Department of Health,NHS Sheffield CCG,28/02/2019,C&M-PMS DES Minor Surgery,PRC DELEGATED CO-COMMISSIONING,WINCOBANK MEDICAL CENTRE,25926783,"1,840.00 "
Department of Health,NHS Sheffield CCG,28/02/2019,C&M-PMS Out of Hours Opt Outs,PRC DELEGATED CO-COMMISSIONING,WINCOBANK MEDICAL CENTRE,25926783,35.91 
Department of Health,NHS Sheffield CCG,28/02/2019,C&M-PMS PCO Other,PRC DELEGATED CO-COMMISSIONING,WINCOBANK MEDICAL CENTRE,25926783,"4,869.00 "
Department of Health,NHS Sheffield CCG,28/02/2019,C&M-PMS Prem Healthcentre Rent,PRC DELEGATED CO-COMMISSIONING,WINCOBANK MEDICAL CENTRE,25926783,"44,024.50 "
Department of Health,NHS Sheffield CCG,28/02/2019,C&M-PMS QOF Aspiration,PRC DELEGATED CO-COMMISSIONING,WINCOBANK MEDICAL CENTRE,25926783,"6,309.99 "
Department of Health,NHS Sheffield CCG,28/02/2019,C&M-PMS Contract Value,PRC DELEGATED CO-COMMISSIONING,WOODHOUSE HEALTH CENTRE,25926781,"100,779.71 "
Department of Health,NHS Sheffield CCG,28/02/2019,C&M-PMS DES Learn Dsblty Hlth Chk,PRC DELEGATED CO-COMMISSIONING,WOODHOUSE HEALTH CENTRE,25926781,840.00 
Department of Health,NHS Sheffield CCG,28/02/2019,C&M-PMS DES Minor Surgery,PRC DELEGATED CO-COMMISSIONING,WOODHOUSE HEALTH CENTRE,25926781,"2,680.00 "
Department of Health,NHS Sheffield CCG,28/02/2019,C&M-PMS Out of Hours Opt Outs,PRC DELEGATED CO-COMMISSIONING,WOODHOUSE HEALTH CENTRE,25926781,88.82 
Department of Health,NHS Sheffield CCG,28/02/2019,C&M-PMS PCO Other,PRC DELEGATED CO-COMMISSIONING,WOODHOUSE HEALTH CENTRE,25926781,"7,468.00 "
Department of Health,NHS Sheffield CCG,28/02/2019,C&M-PMS Prem Notional Rent,PRC DELEGATED CO-COMMISSIONING,WOODHOUSE HEALTH CENTRE,25926781,"6,338.58 "
Department of Health,NHS Sheffield CCG,28/02/2019,C&M-PMS Prem Rates,PRC DELEGATED CO-COMMISSIONING,WOODHOUSE HEALTH CENTRE,25926781,"15,786.29 "
Department of Health,NHS Sheffield CCG,28/02/2019,C&M-PMS Prem Water Rates,PRC DELEGATED CO-COMMISSIONING,WOODHOUSE HEALTH CENTRE,25926781,507.05 
Department of Health,NHS Sheffield CCG,28/02/2019,C&M-PMS QOF Aspiration,PRC DELEGATED CO-COMMISSIONING,WOODHOUSE HEALTH CENTRE,25926781,"13,695.89 "
Department of Health,NHS Sheffield CCG,28/02/2019,C&M-PMS Contract Value,PRC DELEGATED CO-COMMISSIONING,WOODSEATS MEDICAL CENTRE,25933350,"74,925.28 "
Department of Health,NHS Sheffield CCG,28/02/2019,C&M-PMS DES Learn Dsblty Hlth Chk,PRC DELEGATED CO-COMMISSIONING,WOODSEATS MEDICAL CENTRE,25933350,"1,540.00 "
Department of Health,NHS Sheffield CCG,28/02/2019,C&M-PMS DES Minor Surgery,PRC DELEGATED CO-COMMISSIONING,WOODSEATS MEDICAL CENTRE,25933350,"4,350.00 "
Department of Health,NHS Sheffield CCG,28/02/2019,C&M-PMS PCO Other,PRC DELEGATED CO-COMMISSIONING,WOODSEATS MEDICAL CENTRE,25933350,661.48 
Department of Health,NHS Sheffield CCG,28/02/2019,C&M-PMS Prem Notional Rent,PRC DELEGATED CO-COMMISSIONING,WOODSEATS MEDICAL CENTRE,25933350,"11,666.67 "
Department of Health,NHS Sheffield CCG,28/02/2019,C&M-PMS QOF Aspiration,PRC DELEGATED CO-COMMISSIONING,WOODSEATS MEDICAL CENTRE,25933350,"7,979.47 "
Department of Health,NHS Sheffield CCG,28/02/2019,Hcare Srv Rec Fdtn Trust-Non Contract,NCAS/OATS,YORK TEACHING HOSPITAL NHS FOUNDATION TRUST,25872051,"30,929.04 "
Department of Health,NHS Sheffield CCG,28/02/2019,Hcare Srv Rec NHS Trust-Contract Baseline,AMBULANCE SERVICES,YORKSHIRE AMBULANCE SERVICE NHS TRUST,25838239,"1,509,029.00 "
Department of Health,NHS Sheffield CCG,28/02/2019,Hcare Srv Rec NHS Trust-CQUIN,AMBULANCE SERVICES,YORKSHIRE AMBULANCE SERVICE NHS TRUST,25838242,"34,499.00 "
Department of Health,NHS Sheffield CCG,28/02/2019,Hcare Srv Rec NHS Trust-Contract Baseline,AMBULANCE SERVICES,YORKSHIRE AMBULANCE SERVICE NHS TRUST,25838245,"124,103.00 "
Department of Health,NHS Sheffield CCG,28/02/2019,Hcare Srv Rec NHS Trust-Contract Baseline,NHS 111,YORKSHIRE AMBULANCE SERVICE NHS TRUST,25838288,"114,923.00 "
Department of Health,NHS Sheffield CCG,28/02/2019,Hcare Srv Rec NHS Trust-Contract Baseline,PATIENT TRANSPORT,YORKSHIRE AMBULANCE SERVICE NHS TRUST,25838293,"245,019.60 "
,,,,,,,"53,680,547.64 "
